{"text_format":"1","workbook":"xlsx","n_sheets":14,"sheets":["Menu","Entries (Pipeline)","Exits (Pipeline)","Entries (LNG)","Exits (LNG)","Summary","Remarks","BaseData","TimeSeries","CSV_Template","CSV Dimensions","Aux","LogImportData","AuxLNG"],"not_rendered":{"charts":0,"images":1,"macros":1,"external_links":0,"defined_names":58,"comments":0,"pivot_tables":0},"unopened":[],"bounds":{"document_bytes":16777216,"sheet_cells":100000,"rows_first":2000,"rows_last":500,"rows_between":2000,"halvings":0,"cell_chars":16384,"cell_head_chars":4096},"cells_cut":0,"cells_raw":0,"read":"whole","date_system":"1900"}

{"sheet":"Menu","index":0,"n_rows":27,"n_cols":11,"rows_kept":27,"cut":false,"hidden":false,"merged":[[9,1,9,2],[11,1,11,2],[13,1,13,2],[15,1,15,2],[19,1,19,10],[26,1,26,10],[25,1,25,8],[25,9,25,10],[17,1,17,10],[20,1,20,10],[21,1,21,10],[22,1,22,10],[23,1,23,10],[24,1,24,10]]}
[]
[]
[]
[]
[null,"International Energy Agency"]
[null,"Information System on the European Gas Market"]
[null,"IEA Gas Trade Flows"]
[]
[]
[null,"Questionnaire",null,"Gas Trade Flows",null,null,null,null,null,"Loaded info came from :"]
[]
[null,"Submitting Country",null,"Austria"]
[]
[null,"Month of data",null,"September",null,null,null,null,null,"Please specify the file location:","Please specify the file name:"]
[]
[null,"Year of data",null,2024,null,null,null,null,null,null,"AT_GTFM_SEP2024_20241029_1434.csv"]
[]
[null,"Reporting Instructions"]
[]
[null,"Please select your country and the reference month/year of your submission. Entries and Exits sheets will be automatically updated with the available points of pipelline and LNG gas entry/exit on your country borders with their maximum flow capacities. \nFor any changes in the list of the available border points or the maximum flow capacities please contact mgs@iea.org.\nAfter clicking on the 'Create Aggregated Total sheet' option, a summary table displaying the total reported entries and exits can be generated."]
[null,"UNITS AND CONVERSION FACTORS\nPlease report all figures in million cubic metres (mcm) at 15oC and 760 mmHg, i.e Standard Cubic Metres, rounded to three (3) decimal places, and in Terajoules (TJ), on the basis of gross calorific values (1 TJ = 1012J).\nNormal cubic metres (0oC and 760 mmHg) should be converted to standard cubic metres by multiplying by a factor of 1.0548"]
[null,"ENTRIES/EXITS\nReport all natural gas volumes which have physically crossed the national boundaries of the country, whether customs clearance has taken place or not. This includes quantities transiting your country: transit volumes should be included as an import and as an export.\nPlease report the information on a \"gross\" basis - i.e. the total flow in a specified direction over the course of the time period. The gross flow is important in order to better determine the use of the pipeline system. E.g. A border pipeline which exports 100 Mcm over the first 10 days of the month, then imports 100 Mcm in the rest of the month should be reported as an import of 100 Mcm one way and an export of 100 Mcm the other way rather than showing the net flow of 0."]
[null,"IMPORT CSV/ EXPORT to CSV\nData can be imported to (or exported from) the reporting template via a CSV file.\nWhen you click ‘Import CSV file’ , a windows browser opens to select the file to be imported.\nFor exporting the data to CSV, you can specify in advance the location of the file and the name of it. Otherwise, after you click “Export to CSV ”, the CSV file will be exported in the same location as the Excel questionnaire."]
[null,"REMARKS\nUse this worksheet to comment on reported data."]
[null,"CHECKS\nSeveral checks have been incorporated.\nCells are highlighted in red when one of the unit is missing and a warning message appears in the “Summary” sheet.\nA calculated CSV less than 37000 kJ/m3  (37 TJ/mcm) or more than 42 000 kJ/m3 (42 TJ/mcm) is highlighted in red.\nMcm reported figures higher than the reported maximum flow capacity, are highlighted in yellow."]
[null,"FLAGS\nThe user may add flags in a specific datapoint. Explanation of each flag is shown below:\n\nM, Data cannot exist. To be used only when no values are provided. \nO, Missing value (not available/omitted/not known/not surveyed). To be used only when no values are provided.\nN, Not significant/negligible. To be used only when a '0' value is provided.\nC, Confidential value. The C flag is used without values.\n",null,null,null,null,null,null,null,"D, Definition differs. To be used only when values are provided. An explanation should be given in the Remarks worksheet.\nB, Break in time series. To be used only when values are provided. An explanation should be given in the Remarks worksheet.\nP, Provisional value. To be used only when values are provided and only for the most recent time period.\nE, Estimated value. To be used only when values are provided.\nU, Low reliability/uncertain. To be used only when values are provided."]
[null,"You can address your questions to the MGS team: mgs@iea.org"]

{"sheet":"Entries (Pipeline)","index":1,"n_rows":15,"n_cols":10,"rows_kept":15,"cut":false,"hidden":false,"merged":[]}
[null,"Gas Trade Flows Questionnaire"]
[null,"ENTRIES"]
[]
[null,"Selected Country",{"$f":"Menu!$D$12","v":"Austria"}]
[null,"Reporting period",{"$f":"EntryMonth &\"-\"& EntryYear","v":"September-2024"}]
[]
[]
[]
[null,"ENTRY POINTS"]
[null,"Flow","Partner","Location","Max flow\n(Mcm/h)","Natural gas \nMillion m3 (at\n15°C, 760 mm Hg)","FLAG","Natural gas \nTerajoules\n(Gross calor. value)","FLAG","Natural gas \nGross calorific value\n(Calculated)"]
[null,"Pipeline","Czech Republic","Laa/Thaya (Distribution networks)",1.4E-2]
[null,"Pipeline","Germany","Oberkappel, Überackern, Gas storage and distribution networks",4.6580000000000004]
[null,"Pipeline","Italy","Arnoldstein / Tarvisio",1.0229999999999999]
[null,"Pipeline","Slovak Republic","Baumgarten",8.7840000000000007]
[null,"Pipeline","Switzerland","Hochst, Feldkirch/Bangs (Distribution networks)",8.6999999999999994E-2]

{"sheet":"Exits (Pipeline)","index":2,"n_rows":18,"n_cols":10,"rows_kept":18,"cut":false,"hidden":false,"merged":[]}
[null,"Gas Trade Flows Questionnaire"]
[null,"EXITS"]
[]
[null,"Selected Country",{"$f":"Menu!$D$12","v":"Austria"}]
[null,"Reporting period",{"$f":"EntryMonth &\"-\"& EntryYear","v":"September-2024"}]
[]
[]
[]
[null,"EXIT POINTS"]
[null,"Flow","Partner","Location","Max flow\n(Mcm/h)","Natural gas \nMillion m3 (at\n15°C, 760 mm Hg)","FLAG","Natural gas \nTerajoules\n(Gross calor. value)","FLAG","Natural gas \nGross calorific value\n(Calculated)"]
[null,"Pipeline","Czech Republic","Laa/Thaya (Distribution networks)",8.0000000000000002E-3]
[null,"Pipeline","Germany","Oberkappel, Überackern, Gas storage and distribution networks",5.71]
[null,"Pipeline","Hungary","Mosonmagyarovar",0.59399999999999997]
[null,"Pipeline","Italy","Arnoldstein / Tarvisio",4.5720000000000001]
[null,"Pipeline","Liechtenstein","Ruggell (Distribution networks)",2.3E-2]
[null,"Pipeline","Slovak Republic","Baumgarten",1.0620000000000001]
[null,"Pipeline","Slovenia","Murfeld",0.42899999999999999]
[null,"Pipeline","Switzerland","Hochst, Feldkirch/Bangs (Distribution networks)",8.6999999999999994E-2]

{"sheet":"Entries (LNG)","index":3,"n_rows":10,"n_cols":4,"rows_kept":10,"cut":false,"hidden":false,"merged":[]}
[null,"Gas Trade Flows Questionnaire"]
[null,"ENTRIES"]
[]
[null,"Selected Country",{"$f":"Menu!$D$12","v":"Austria"}]
[null,"Reporting period",{"$f":"EntryMonth &\"-\"& EntryYear","v":"September-2024"}]
[]
[]
[]
[]
[null,null,null,"Note: This reporting country does not have facilities for Entries (LNG). In case of a change in this status, please inform mgs@iea.org”."]

{"sheet":"Exits (LNG)","index":4,"n_rows":10,"n_cols":4,"rows_kept":10,"cut":false,"hidden":false,"merged":[]}
[null,"Gas Trade Flows Questionnaire"]
[null,"EXITS"]
[]
[null,"Selected Country",{"$f":"Menu!$D$12","v":"Austria"}]
[null,"Reporting period",{"$f":"EntryMonth &\"-\"& EntryYear","v":"September-2024"}]
[]
[]
[]
[]
[null,null,null,"Note: This reporting country does not have facilities for Exits (LNG). In case of a change in this status, please inform mgs@iea.org”."]

{"sheet":"Summary","index":5,"n_rows":31,"n_cols":8,"rows_kept":31,"cut":false,"hidden":true,"merged":[]}
[null,"Gas Trade Flows Questionnaire"]
[null,"TOTALS"]
[]
[null,"Selected Country",{"$f":"Menu!$D$12","v":"Austria"}]
[null,"Reporting period",{"$f":"EntryMonth &\"-\"& EntryYear","v":"September-2024"}]
[]
[]
[]
[null,"ENTRY POINTS"]
[null,"Flow","Partner","Location","Max flow\n(Mcm/h)","Natural gas \nMillion m3 (at\n15°C, 760 mm Hg)","Natural gas \nTerajoules\n(Gross calor. value)","Natural gas \nGross calorific value\n(Calculated)"]
[null,"Pipeline","Czech Republic","Laa/Thaya (Distribution networks)",1.4E-2]
[null,"Pipeline","Germany","Oberkappel, Überackern, Gas storage and distribution networks",4.6580000000000004]
[null,"Pipeline","Italy","Arnoldstein / Tarvisio",1.0229999999999999]
[null,"Pipeline","Slovak Republic","Baumgarten",8.7840000000000007]
[null,"Pipeline","Switzerland","Hochst, Feldkirch/Bangs (Distribution networks)",8.6999999999999994E-2]
[null,"Pipeline","Total",null,14.566000000000001,0,0]
[null,"LNG","LNG","Note: This reporting country does not have facilities for Entries (LNG). In case of a change in this status, please inform mgs@iea.org”.",null,0,0]
[null,"LNG","Total",null,0,0,0]
[null,"EXIT POINTS"]
[null,"Flow","Partner","Location","Max flow\n(Mcm/h)","Natural gas \nMillion m3 (at\n15°C, 760 mm Hg)","Natural gas \nTerajoules\n(Gross calor. value)","Natural gas \nGross calorific value\n(Calculated)"]
[null,"Pipeline","Czech Republic","Laa/Thaya (Distribution networks)",8.0000000000000002E-3]
[null,"Pipeline","Germany","Oberkappel, Überackern, Gas storage and distribution networks",5.71]
[null,"Pipeline","Hungary","Mosonmagyarovar",0.59399999999999997]
[null,"Pipeline","Italy","Arnoldstein / Tarvisio",4.5720000000000001]
[null,"Pipeline","Liechtenstein","Ruggell (Distribution networks)",2.3E-2]
[null,"Pipeline","Slovak Republic","Baumgarten",1.0620000000000001]
[null,"Pipeline","Slovenia","Murfeld",0.42899999999999999]
[null,"Pipeline","Switzerland","Hochst, Feldkirch/Bangs (Distribution networks)",8.6999999999999994E-2]
[null,"Pipeline","Total",null,12.484999999999999,0,0]
[null,"LNG","LNG","Note: This reporting country does not have facilities for Exits (LNG). In case of a change in this status, please inform mgs@iea.org”.",null,0,0]
[null,"LNG","Total",null,0,0,0]

{"sheet":"Remarks","index":6,"n_rows":3,"n_cols":5,"rows_kept":3,"cut":false,"hidden":false,"merged":[[1,2,1,4]]}
[]
[null,null,"GTF Remarks"]
[null,null,"Remark number","Remark text","Remark month (for TimeSeries only)"]

{"sheet":"BaseData","index":7,"n_rows":306,"n_cols":8,"rows_kept":306,"cut":false,"hidden":true,"merged":[]}
["CODE_COUNTRY","CODE_FLOW","CODE_PARTNER","CODE_LOCATION","Location","MAXFLOW","DATATYPE","Partner"]
["AT","Pipeline","CZ","LAA","Laa/Thaya (Distribution networks)",1.4E-2,"ENTRY",{"$f":"VLOOKUP(BaseData[[#This Row],[CODE_PARTNER]],COUNTRY[],2,0)","v":"Czech Republic"}]
["AT","Pipeline","DE","OBERKAPDST","Oberkappel, Überackern, Gas storage and distribution networks",4.6580000000000004,"ENTRY",{"$f":"VLOOKUP(BaseData[[#This Row],[CODE_PARTNER]],COUNTRY[],2,0)","v":"Germany"}]
["AT","Pipeline","IT","TARVISIO","Arnoldstein / Tarvisio",1.0229999999999999,"ENTRY",{"$f":"VLOOKUP(BaseData[[#This Row],[CODE_PARTNER]],COUNTRY[],2,0)","v":"Italy"}]
["AT","Pipeline","SK","BAUMGARTEN","Baumgarten",8.7840000000000007,"ENTRY",{"$f":"VLOOKUP(BaseData[[#This Row],[CODE_PARTNER]],COUNTRY[],2,0)","v":"Slovak Republic"}]
["AT","Pipeline","CH","HOCHST","Hochst, Feldkirch/Bangs (Distribution networks)",8.6999999999999994E-2,"ENTRY",{"$f":"VLOOKUP(BaseData[[#This Row],[CODE_PARTNER]],COUNTRY[],2,0)","v":"Switzerland"}]
["AT","Pipeline","CZ","LAA","Laa/Thaya (Distribution networks)",8.0000000000000002E-3,"EXIT",{"$f":"VLOOKUP(BaseData[[#This Row],[CODE_PARTNER]],COUNTRY[],2,0)","v":"Czech Republic"}]
["AT","Pipeline","DE","OBERKAPDST","Oberkappel, Überackern, Gas storage and distribution networks",5.71,"EXIT",{"$f":"VLOOKUP(BaseData[[#This Row],[CODE_PARTNER]],COUNTRY[],2,0)","v":"Germany"}]
["AT","Pipeline","HU","MOSONMAGYA","Mosonmagyarovar",0.59399999999999997,"EXIT",{"$f":"VLOOKUP(BaseData[[#This Row],[CODE_PARTNER]],COUNTRY[],2,0)","v":"Hungary"}]
["AT","Pipeline","IT","TARVISIO","Arnoldstein / Tarvisio",4.5720000000000001,"EXIT",{"$f":"VLOOKUP(BaseData[[#This Row],[CODE_PARTNER]],COUNTRY[],2,0)","v":"Italy"}]
["AT","Pipeline","LI","RUGGELL","Ruggell (Distribution networks)",2.3E-2,"EXIT",{"$f":"VLOOKUP(BaseData[[#This Row],[CODE_PARTNER]],COUNTRY[],2,0)","v":"Liechtenstein"}]
["AT","Pipeline","SK","BAUMGARTEN","Baumgarten",1.0620000000000001,"EXIT",{"$f":"VLOOKUP(BaseData[[#This Row],[CODE_PARTNER]],COUNTRY[],2,0)","v":"Slovak Republic"}]
["AT","Pipeline","SI","MURFELD","Murfeld",0.42899999999999999,"EXIT",{"$f":"VLOOKUP(BaseData[[#This Row],[CODE_PARTNER]],COUNTRY[],2,0)","v":"Slovenia"}]
["AT","Pipeline","CH","HOCHST","Hochst, Feldkirch/Bangs (Distribution networks)",8.6999999999999994E-2,"EXIT",{"$f":"VLOOKUP(BaseData[[#This Row],[CODE_PARTNER]],COUNTRY[],2,0)","v":"Switzerland"}]
["BE","LNG","LNG","ZEEBRU_LNG","Zeebrugge (LNG)",1.77,"ENTRY",{"$f":"VLOOKUP(BaseData[[#This Row],[CODE_PARTNER]],COUNTRY[],2,0)","v":"LNG"}]
["BE","Pipeline","FR","VIRTUALYS","Virtualys",0.08,"ENTRY",{"$f":"VLOOKUP(BaseData[[#This Row],[CODE_PARTNER]],COUNTRY[],2,0)","v":"France"}]
["BE","Pipeline","DE","VIPTHEZTP","VIP-THE-ZTP",1.88,"ENTRY",{"$f":"VLOOKUP(BaseData[[#This Row],[CODE_PARTNER]],COUNTRY[],2,0)","v":"Germany"}]
["BE","Pipeline","NL","HILVARENBE","Hilvarenbeek (L)",2.75,"ENTRY",{"$f":"VLOOKUP(BaseData[[#This Row],[CODE_PARTNER]],COUNTRY[],2,0)","v":"Netherlands"}]
["BE","Pipeline","NL","VIPBENE","VIP BENE",3.06,"ENTRY",{"$f":"VLOOKUP(BaseData[[#This Row],[CODE_PARTNER]],COUNTRY[],2,0)","v":"Netherlands"}]
["BE","Pipeline","NO","ZEEBRU_ZPT","Zeebrugge (ZPT)",1.75,"ENTRY",{"$f":"VLOOKUP(BaseData[[#This Row],[CODE_PARTNER]],COUNTRY[],2,0)","v":"Norway"}]
["BE","Pipeline","GB","INTERCONN","Interconnector (IZT)",0.56000000000000005,"ENTRY",{"$f":"VLOOKUP(BaseData[[#This Row],[CODE_PARTNER]],COUNTRY[],2,0)","v":"United Kingdom"}]
["BE","Pipeline","FR","TASNIERES","Blaregnies (L)",1.04,"EXIT",{"$f":"VLOOKUP(BaseData[[#This Row],[CODE_PARTNER]],COUNTRY[],2,0)","v":"France"}]
["BE","Pipeline","FR","VIRTUALYS","Virtualys",1.38,"EXIT",{"$f":"VLOOKUP(BaseData[[#This Row],[CODE_PARTNER]],COUNTRY[],2,0)","v":"France"}]
["BE","Pipeline","DE","VIPTHEZTP","VIP-THE-ZTP",2.2999999999999998,"EXIT",{"$f":"VLOOKUP(BaseData[[#This Row],[CODE_PARTNER]],COUNTRY[],2,0)","v":"Germany"}]
["BE","Pipeline","LU","BRASPETAN","Bras - Petange",0.18,"EXIT",{"$f":"VLOOKUP(BaseData[[#This Row],[CODE_PARTNER]],COUNTRY[],2,0)","v":"Luxembourg"}]
["BE","Pipeline","NL","VIPBENE","VIP BENE",1.64,"EXIT",{"$f":"VLOOKUP(BaseData[[#This Row],[CODE_PARTNER]],COUNTRY[],2,0)","v":"Netherlands"}]
["BE","Pipeline","GB","INTERCONN","Interconnector (IZT)",1.28,"EXIT",{"$f":"VLOOKUP(BaseData[[#This Row],[CODE_PARTNER]],COUNTRY[],2,0)","v":"United Kingdom"}]
["BG","Pipeline","GR","KULA","Kulata (BG)/Sidirokastro(GR)",0.25,"ENTRY",{"$f":"VLOOKUP(BaseData[[#This Row],[CODE_PARTNER]],COUNTRY[],2,0)","v":"Greece"}]
["BG","Pipeline","GR","STARAZAGOR","IP Stara Zagora",0.46,"ENTRY",{"$f":"VLOOKUP(BaseData[[#This Row],[CODE_PARTNER]],COUNTRY[],2,0)","v":"Greece"}]
["BG","Pipeline","MK","JIDILOVO","Kyustendil (BG)/Zidilovo (MK)",0,"ENTRY",{"$f":"VLOOKUP(BaseData[[#This Row],[CODE_PARTNER]],COUNTRY[],2,0)","v":"North Macedonia"}]
["BG","Pipeline","RO","GIURGIU","Ruse (BG)/Giurgiu (RO)",0.16700000000000001,"ENTRY",{"$f":"VLOOKUP(BaseData[[#This Row],[CODE_PARTNER]],COUNTRY[],2,0)","v":"Romania"}]
["BG","Pipeline","RO","NEGRU_VODA","Negru Voda 1 (RO)/Kardam (BG)",0.83,"ENTRY",{"$f":"VLOOKUP(BaseData[[#This Row],[CODE_PARTNER]],COUNTRY[],2,0)","v":"Romania"}]
["BG","Pipeline","RS","KALOTINA","Kalotina (BG)/ Dimitrovgrad (RS)",2.9484E-2,"ENTRY",{"$f":"VLOOKUP(BaseData[[#This Row],[CODE_PARTNER]],COUNTRY[],2,0)","v":"Serbia"}]
["BG","Pipeline","TR","MALKOCLAR","Strandzha  (BG)/ Malkoclar (TR)",0.45,"ENTRY",{"$f":"VLOOKUP(BaseData[[#This Row],[CODE_PARTNER]],COUNTRY[],2,0)","v":"Turkey"}]
["BG","Pipeline","TR","MALKOCLAR2","Strandzha 2 (BG)/ Malkoclar (TR)",2.2400000000000002,"ENTRY",{"$f":"VLOOKUP(BaseData[[#This Row],[CODE_PARTNER]],COUNTRY[],2,0)","v":"Turkey"}]
["BG","Pipeline","GR","KULA","Kulata (BG)/Sidirokastro(GR)",0.45500000000000002,"EXIT",{"$f":"VLOOKUP(BaseData[[#This Row],[CODE_PARTNER]],COUNTRY[],2,0)","v":"Greece"}]
["BG","Pipeline","GR","STARAZAGOR","IP Stara Zagora",0.08,"EXIT",{"$f":"VLOOKUP(BaseData[[#This Row],[CODE_PARTNER]],COUNTRY[],2,0)","v":"Greece"}]
["BG","Pipeline","MK","JIDILOVO","Kyustendil (BG)/Zidilovo (MK)",0.126,"EXIT",{"$f":"VLOOKUP(BaseData[[#This Row],[CODE_PARTNER]],COUNTRY[],2,0)","v":"North Macedonia"}]
["BG","Pipeline","RO","GIURGIU","Ruse (BG)/Giurgiu (RO)",0.1,"EXIT",{"$f":"VLOOKUP(BaseData[[#This Row],[CODE_PARTNER]],COUNTRY[],2,0)","v":"Romania"}]
["BG","Pipeline","RO","NEGRU_VODA","Negru Voda 1 (RO)/Kardam (BG)",0.61,"EXIT",{"$f":"VLOOKUP(BaseData[[#This Row],[CODE_PARTNER]],COUNTRY[],2,0)","v":"Romania"}]
["BG","Pipeline","RS","KALOTINA","Kalotina (BG)/ Dimitrovgrad (RS)",0.20188349999999999,"EXIT",{"$f":"VLOOKUP(BaseData[[#This Row],[CODE_PARTNER]],COUNTRY[],2,0)","v":"Serbia"}]
["BG","Pipeline","RS","KIREEVO","Kireevo (BG)/Zaychar (RS) (Rasovo)",1.56,"EXIT",{"$f":"VLOOKUP(BaseData[[#This Row],[CODE_PARTNER]],COUNTRY[],2,0)","v":"Serbia"}]
["BG","Pipeline","TR","MALKOCLAR","Strandzha  (BG)/ Malkoclar (TR)",1.93,"EXIT",{"$f":"VLOOKUP(BaseData[[#This Row],[CODE_PARTNER]],COUNTRY[],2,0)","v":"Turkey"}]
["CH","Pipeline","FR","OLTINGUE","Oltingue",0.89,"ENTRY",{"$f":"VLOOKUP(BaseData[[#This Row],[CODE_PARTNER]],COUNTRY[],2,0)","v":"France"}]
["CH","Pipeline","DE","WALLBACH","Wallbach",2.2400000000000002,"ENTRY",{"$f":"VLOOKUP(BaseData[[#This Row],[CODE_PARTNER]],COUNTRY[],2,0)","v":"Germany"}]
["CH","Pipeline","IT","GRIESPASS","Griespass",2.4,"ENTRY",{"$f":"VLOOKUP(BaseData[[#This Row],[CODE_PARTNER]],COUNTRY[],2,0)","v":"Italy"}]
["CH","Pipeline","FR","OLTINGUE","Oltingue",0.89,"EXIT",{"$f":"VLOOKUP(BaseData[[#This Row],[CODE_PARTNER]],COUNTRY[],2,0)","v":"France"}]
["CH","Pipeline","DE","WALLBACH","Wallbach",2.2400000000000002,"EXIT",{"$f":"VLOOKUP(BaseData[[#This Row],[CODE_PARTNER]],COUNTRY[],2,0)","v":"Germany"}]
["CH","Pipeline","IT","GRIESPASS","Griespass",2.4,"EXIT",{"$f":"VLOOKUP(BaseData[[#This Row],[CODE_PARTNER]],COUNTRY[],2,0)","v":"Italy"}]
["CZ","Pipeline","DE","BRANDOVEUG","Brandov EUGAL",4.43,"ENTRY",{"$f":"VLOOKUP(BaseData[[#This Row],[CODE_PARTNER]],COUNTRY[],2,0)","v":"Germany"}]
["CZ","Pipeline","DE","BRANDOVOPA","Brandov OPAL",3.75,"ENTRY",{"$f":"VLOOKUP(BaseData[[#This Row],[CODE_PARTNER]],COUNTRY[],2,0)","v":"Germany"}]
["CZ","Pipeline","DE","HORA_KATER","Deutschneudorf / Hora Svate Kateriny",0.6,"ENTRY",{"$f":"VLOOKUP(BaseData[[#This Row],[CODE_PARTNER]],COUNTRY[],2,0)","v":"Germany"}]
["CZ","Pipeline","DE","OLBERNHAU","Olbernhau",1.25,"ENTRY",{"$f":"VLOOKUP(BaseData[[#This Row],[CODE_PARTNER]],COUNTRY[],2,0)","v":"Germany"}]
["CZ","Pipeline","DE","WAIDHAUS","Waidhaus",0.47,"ENTRY",{"$f":"VLOOKUP(BaseData[[#This Row],[CODE_PARTNER]],COUNTRY[],2,0)","v":"Germany"}]
["CZ","Pipeline","PL","MORAVIA","Cieszyn (PL) / Cesky Tesin (CZ)",0,"ENTRY",{"$f":"VLOOKUP(BaseData[[#This Row],[CODE_PARTNER]],COUNTRY[],2,0)","v":"Poland"}]
["CZ","Pipeline","SK","LANZHOT","Lanzhot",6.46,"ENTRY",{"$f":"VLOOKUP(BaseData[[#This Row],[CODE_PARTNER]],COUNTRY[],2,0)","v":"Slovak Republic"}]
["CZ","Pipeline","DE","BRANDOVSTE","Brandov STEGAL",1.1399999999999999,"EXIT",{"$f":"VLOOKUP(BaseData[[#This Row],[CODE_PARTNER]],COUNTRY[],2,0)","v":"Germany"}]
["CZ","Pipeline","DE","HORA_KATER","Deutschneudorf / Hora Svate Kateriny",0.78,"EXIT",{"$f":"VLOOKUP(BaseData[[#This Row],[CODE_PARTNER]],COUNTRY[],2,0)","v":"Germany"}]
["CZ","Pipeline","DE","WAIDHAUS","Waidhaus",4.22,"EXIT",{"$f":"VLOOKUP(BaseData[[#This Row],[CODE_PARTNER]],COUNTRY[],2,0)","v":"Germany"}]
["CZ","Pipeline","PL","MORAVIA","Cieszyn (PL) / Cesky Tesin (CZ)",0.11,"EXIT",{"$f":"VLOOKUP(BaseData[[#This Row],[CODE_PARTNER]],COUNTRY[],2,0)","v":"Poland"}]
["CZ","Pipeline","SK","LANZHOT","Lanzhot",5.51,"EXIT",{"$f":"VLOOKUP(BaseData[[#This Row],[CODE_PARTNER]],COUNTRY[],2,0)","v":"Slovak Republic"}]
["DE","Pipeline","AT","OBERKAPPEL","Oberkappel",0.51,"ENTRY",{"$f":"VLOOKUP(BaseData[[#This Row],[CODE_PARTNER]],COUNTRY[],2,0)","v":"Austria"}]
["DE","Pipeline","AT","UBERACK_1","Überackern I",0.21,"ENTRY",{"$f":"VLOOKUP(BaseData[[#This Row],[CODE_PARTNER]],COUNTRY[],2,0)","v":"Austria"}]
["DE","Pipeline","AT","UBERACK_2","Überackern 2",0.89,"ENTRY",{"$f":"VLOOKUP(BaseData[[#This Row],[CODE_PARTNER]],COUNTRY[],2,0)","v":"Austria"}]
["DE","Pipeline","BE","EYNATTEN_E","Eynatten / Lichtenbusch",1.17,"ENTRY",{"$f":"VLOOKUP(BaseData[[#This Row],[CODE_PARTNER]],COUNTRY[],2,0)","v":"Belgium"}]
["DE","Pipeline","CZ","HORA_KATER","Deutschneudorf / Hora Svate Kateriny",0.76,"ENTRY",{"$f":"VLOOKUP(BaseData[[#This Row],[CODE_PARTNER]],COUNTRY[],2,0)","v":"Czech Republic"}]
["DE","Pipeline","CZ","OLBERNHAU","Olbernhau",0.03,"ENTRY",{"$f":"VLOOKUP(BaseData[[#This Row],[CODE_PARTNER]],COUNTRY[],2,0)","v":"Czech Republic"}]
["DE","Pipeline","CZ","WAIDHAUS","Waidhaus",3.48,"ENTRY",{"$f":"VLOOKUP(BaseData[[#This Row],[CODE_PARTNER]],COUNTRY[],2,0)","v":"Czech Republic"}]
["DE","Pipeline","DK","ELLUND","Ellund",0.14000000000000001,"ENTRY",{"$f":"VLOOKUP(BaseData[[#This Row],[CODE_PARTNER]],COUNTRY[],2,0)","v":"Denmark"}]
["DE","Pipeline","FR","OBERGAILBA","Medelsheim / Obergailbach","N/A","ENTRY",{"$f":"VLOOKUP(BaseData[[#This Row],[CODE_PARTNER]],COUNTRY[],2,0)","v":"France"}]
["DE","Pipeline","NL","BOCHOLTZ","Bocholtz",1.87,"ENTRY",{"$f":"VLOOKUP(BaseData[[#This Row],[CODE_PARTNER]],COUNTRY[],2,0)","v":"Netherlands"}]
["DE","Pipeline","NL","BOCHVETSCH","Bocholtz-Vetschau",0.06,"ENTRY",{"$f":"VLOOKUP(BaseData[[#This Row],[CODE_PARTNER]],COUNTRY[],2,0)","v":"Netherlands"}]
["DE","Pipeline","NL","BUNDE","Bunde","N/A","ENTRY",{"$f":"VLOOKUP(BaseData[[#This Row],[CODE_PARTNER]],COUNTRY[],2,0)","v":"Netherlands"}]
["DE","Pipeline","NL","HAANRADE","Haanrade",0.02,"ENTRY",{"$f":"VLOOKUP(BaseData[[#This Row],[CODE_PARTNER]],COUNTRY[],2,0)","v":"Netherlands"}]
["DE","Pipeline","NL","OUDE_H_GAS","Oude (H-Gas)",0.56999999999999995,"ENTRY",{"$f":"VLOOKUP(BaseData[[#This Row],[CODE_PARTNER]],COUNTRY[],2,0)","v":"Netherlands"}]
["DE","Pipeline","NL","OUDE_L_GAS","Oude (L-Gas)",0.95,"ENTRY",{"$f":"VLOOKUP(BaseData[[#This Row],[CODE_PARTNER]],COUNTRY[],2,0)","v":"Netherlands"}]
["DE","Pipeline","NL","TEGELEN","Tegelen",0.01,"ENTRY",{"$f":"VLOOKUP(BaseData[[#This Row],[CODE_PARTNER]],COUNTRY[],2,0)","v":"Netherlands"}]
["DE","Pipeline","NL","WINTERSWIJ","Winterswijk/Vreden",0.77,"ENTRY",{"$f":"VLOOKUP(BaseData[[#This Row],[CODE_PARTNER]],COUNTRY[],2,0)","v":"Netherlands"}]
["DE","Pipeline","NL","ZEVENAAR","Zevenaar/Elten",1.87,"ENTRY",{"$f":"VLOOKUP(BaseData[[#This Row],[CODE_PARTNER]],COUNTRY[],2,0)","v":"Netherlands"}]
["DE","Pipeline","NO","DORNUM","Dornum",2.98,"ENTRY",{"$f":"VLOOKUP(BaseData[[#This Row],[CODE_PARTNER]],COUNTRY[],2,0)","v":"Norway"}]
["DE","Pipeline","NO","EMDEN_EPT1","Emden - EPT1 (DE) / Emden - EMS (NO)",1.63,"ENTRY",{"$f":"VLOOKUP(BaseData[[#This Row],[CODE_PARTNER]],COUNTRY[],2,0)","v":"Norway"}]
["DE","Pipeline","PL","KAMMINKE","Kamminke","N/A","ENTRY",{"$f":"VLOOKUP(BaseData[[#This Row],[CODE_PARTNER]],COUNTRY[],2,0)","v":"Poland"}]
["DE","Pipeline","PL","MALLNOW","Mallnow",3.58,"ENTRY",{"$f":"VLOOKUP(BaseData[[#This Row],[CODE_PARTNER]],COUNTRY[],2,0)","v":"Poland"}]
["DE","Pipeline","RU","NORDSTREAM","Greifswals (NORDSTREAM-NEL+OPAL)",6.67,"ENTRY",{"$f":"VLOOKUP(BaseData[[#This Row],[CODE_PARTNER]],COUNTRY[],2,0)","v":"Russian Federation"}]
["DE","Pipeline","CH","WALLBACH","Wallbach","N/A","ENTRY",{"$f":"VLOOKUP(BaseData[[#This Row],[CODE_PARTNER]],COUNTRY[],2,0)","v":"Switzerland"}]
["DE","Pipeline","AT","KIEFERSF","Kiefersfelden",0.09,"EXIT",{"$f":"VLOOKUP(BaseData[[#This Row],[CODE_PARTNER]],COUNTRY[],2,0)","v":"Austria"}]
["DE","Pipeline","AT","LINDAU","Lindau","N/A","EXIT",{"$f":"VLOOKUP(BaseData[[#This Row],[CODE_PARTNER]],COUNTRY[],2,0)","v":"Austria"}]
["DE","Pipeline","AT","OBERKAPPEL","Oberkappel",0.68,"EXIT",{"$f":"VLOOKUP(BaseData[[#This Row],[CODE_PARTNER]],COUNTRY[],2,0)","v":"Austria"}]
["DE","Pipeline","AT","UBERACK","Überackern I/II",0.45,"EXIT",{"$f":"VLOOKUP(BaseData[[#This Row],[CODE_PARTNER]],COUNTRY[],2,0)","v":"Austria"}]
["DE","Pipeline","BE","EYNATTEN_E","Eynatten / Lichtenbusch",1.39,"EXIT",{"$f":"VLOOKUP(BaseData[[#This Row],[CODE_PARTNER]],COUNTRY[],2,0)","v":"Belgium"}]
["DE","Pipeline","CZ","BRANDOVOPA","Brandov OPAL",3.69,"EXIT",{"$f":"VLOOKUP(BaseData[[#This Row],[CODE_PARTNER]],COUNTRY[],2,0)","v":"Czech Republic"}]
["DE","Pipeline","CZ","HORA_KATER","Deutschneudorf / Hora Svate Kateriny",0.42,"EXIT",{"$f":"VLOOKUP(BaseData[[#This Row],[CODE_PARTNER]],COUNTRY[],2,0)","v":"Czech Republic"}]
["DE","Pipeline","CZ","OLBERNHAU","Olbernhau",1.23,"EXIT",{"$f":"VLOOKUP(BaseData[[#This Row],[CODE_PARTNER]],COUNTRY[],2,0)","v":"Czech Republic"}]
["DE","Pipeline","CZ","WAIDHAUS","Waidhaus","N/A","EXIT",{"$f":"VLOOKUP(BaseData[[#This Row],[CODE_PARTNER]],COUNTRY[],2,0)","v":"Czech Republic"}]
["DE","Pipeline","DK","ELLUND","Ellund",0.04,"EXIT",{"$f":"VLOOKUP(BaseData[[#This Row],[CODE_PARTNER]],COUNTRY[],2,0)","v":"Denmark"}]
["DE","Pipeline","FR","OBERGAILBA","Medelsheim / Obergailbach",2.0099999999999998,"EXIT",{"$f":"VLOOKUP(BaseData[[#This Row],[CODE_PARTNER]],COUNTRY[],2,0)","v":"France"}]
["DE","Pipeline","LU","REMICH","Remich",0.15,"EXIT",{"$f":"VLOOKUP(BaseData[[#This Row],[CODE_PARTNER]],COUNTRY[],2,0)","v":"Luxembourg"}]
["DE","Pipeline","NL","BUNDE","Bunde",1.1499999999999999,"EXIT",{"$f":"VLOOKUP(BaseData[[#This Row],[CODE_PARTNER]],COUNTRY[],2,0)","v":"Netherlands"}]
["DE","Pipeline","NL","OUDE_H_GAS","Oude (H-Gas)",0.79,"EXIT",{"$f":"VLOOKUP(BaseData[[#This Row],[CODE_PARTNER]],COUNTRY[],2,0)","v":"Netherlands"}]
["DE","Pipeline","NL","OUDE_L_GAS","Oude (L-Gas)",0.27,"EXIT",{"$f":"VLOOKUP(BaseData[[#This Row],[CODE_PARTNER]],COUNTRY[],2,0)","v":"Netherlands"}]
["DE","Pipeline","PL","GUBIN","Gubin","N/A","EXIT",{"$f":"VLOOKUP(BaseData[[#This Row],[CODE_PARTNER]],COUNTRY[],2,0)","v":"Poland"}]
["DE","Pipeline","PL","LASOW","Görlitz/ Lasów",0.19,"EXIT",{"$f":"VLOOKUP(BaseData[[#This Row],[CODE_PARTNER]],COUNTRY[],2,0)","v":"Poland"}]
["DE","Pipeline","PL","MALLNOW","Mallnow",0.27,"EXIT",{"$f":"VLOOKUP(BaseData[[#This Row],[CODE_PARTNER]],COUNTRY[],2,0)","v":"Poland"}]
["DE","Pipeline","CH","BASEL","Basel","N/A","EXIT",{"$f":"VLOOKUP(BaseData[[#This Row],[CODE_PARTNER]],COUNTRY[],2,0)","v":"Switzerland"}]
["DE","Pipeline","CH","THAYNGEN","Thayngen","N/A","EXIT",{"$f":"VLOOKUP(BaseData[[#This Row],[CODE_PARTNER]],COUNTRY[],2,0)","v":"Switzerland"}]
["DE","Pipeline","CH","WALLBACH","Wallbach",1.75,"EXIT",{"$f":"VLOOKUP(BaseData[[#This Row],[CODE_PARTNER]],COUNTRY[],2,0)","v":"Switzerland"}]
["DK","Pipeline","DE","ELLUND","Ellund",0.2,"ENTRY",{"$f":"VLOOKUP(BaseData[[#This Row],[CODE_PARTNER]],COUNTRY[],2,0)","v":"Germany"}]
["DK","Pipeline","NO","NYBRO","Nybro","N/A","ENTRY",{"$f":"VLOOKUP(BaseData[[#This Row],[CODE_PARTNER]],COUNTRY[],2,0)","v":"Norway"}]
["DK","Pipeline","DE","ELLUND","Ellund",0.35,"EXIT",{"$f":"VLOOKUP(BaseData[[#This Row],[CODE_PARTNER]],COUNTRY[],2,0)","v":"Germany"}]
["DK","Pipeline","NL","NOGAT","North Sea via NOGAT to Den Helder",0.63,"EXIT",{"$f":"VLOOKUP(BaseData[[#This Row],[CODE_PARTNER]],COUNTRY[],2,0)","v":"Netherlands"}]
["DK","Pipeline","PL","FAXE","Faxe",null,"EXIT",{"$f":"VLOOKUP(BaseData[[#This Row],[CODE_PARTNER]],COUNTRY[],2,0)","v":"Poland"}]
["DK","Pipeline","SE","DRAGOR","Dragor",0.36,"EXIT",{"$f":"VLOOKUP(BaseData[[#This Row],[CODE_PARTNER]],COUNTRY[],2,0)","v":"Sweden"}]
["EE","Pipeline","FI","BALTICCONN","Baltic Connector Inkoo/Paldiski",0.32100000000000001,"ENTRY",{"$f":"VLOOKUP(BaseData[[#This Row],[CODE_PARTNER]],COUNTRY[],2,0)","v":"Finland"}]
["EE","Pipeline","LV","KARKSI","Karksi",0.41699999999999998,"ENTRY",{"$f":"VLOOKUP(BaseData[[#This Row],[CODE_PARTNER]],COUNTRY[],2,0)","v":"Latvia"}]
["EE","Pipeline","RU","NARVA","Narva",0.125,"ENTRY",{"$f":"VLOOKUP(BaseData[[#This Row],[CODE_PARTNER]],COUNTRY[],2,0)","v":"Russian Federation"}]
["EE","Pipeline","RU","VARSKA","Varska",0.17,"ENTRY",{"$f":"VLOOKUP(BaseData[[#This Row],[CODE_PARTNER]],COUNTRY[],2,0)","v":"Russian Federation"}]
["EE","Pipeline","FI","BALTICCONN","Baltic Connector Inkoo/Paldiski",0.32100000000000001,"EXIT",{"$f":"VLOOKUP(BaseData[[#This Row],[CODE_PARTNER]],COUNTRY[],2,0)","v":"Finland"}]
["EE","Pipeline","LV","KARKSI","Karksi",0.41699999999999998,"EXIT",{"$f":"VLOOKUP(BaseData[[#This Row],[CODE_PARTNER]],COUNTRY[],2,0)","v":"Latvia"}]
["EE","Pipeline","RU","NARVA","Narva",0.125,"EXIT",{"$f":"VLOOKUP(BaseData[[#This Row],[CODE_PARTNER]],COUNTRY[],2,0)","v":"Russian Federation"}]
["EE","Pipeline","RU","VARSKA","Varska",0.17,"EXIT",{"$f":"VLOOKUP(BaseData[[#This Row],[CODE_PARTNER]],COUNTRY[],2,0)","v":"Russian Federation"}]
["ES","LNG","LNG","BARCELONA","Barcelona",1.95,"ENTRY",{"$f":"VLOOKUP(BaseData[[#This Row],[CODE_PARTNER]],COUNTRY[],2,0)","v":"LNG"}]
["ES","LNG","LNG","BILBAO","Bilbao",0.8,"ENTRY",{"$f":"VLOOKUP(BaseData[[#This Row],[CODE_PARTNER]],COUNTRY[],2,0)","v":"LNG"}]
["ES","LNG","LNG","CARTAGENA","Cartagena",1.35,"ENTRY",{"$f":"VLOOKUP(BaseData[[#This Row],[CODE_PARTNER]],COUNTRY[],2,0)","v":"LNG"}]
["ES","LNG","LNG","HUELVA","Huelva",1.35,"ENTRY",{"$f":"VLOOKUP(BaseData[[#This Row],[CODE_PARTNER]],COUNTRY[],2,0)","v":"LNG"}]
["ES","LNG","LNG","MUGARDOS","Mugardos",0.41,"ENTRY",{"$f":"VLOOKUP(BaseData[[#This Row],[CODE_PARTNER]],COUNTRY[],2,0)","v":"LNG"}]
["ES","LNG","LNG","MUSEL","Musel",0.23,"ENTRY",{"$f":"VLOOKUP(BaseData[[#This Row],[CODE_PARTNER]],COUNTRY[],2,0)","v":"LNG"}]
["ES","LNG","LNG","SAGUNTO","Sagunto",1,"ENTRY",{"$f":"VLOOKUP(BaseData[[#This Row],[CODE_PARTNER]],COUNTRY[],2,0)","v":"LNG"}]
["ES","Pipeline","DZ","ALMERIA","Almeria",1.21,"ENTRY",{"$f":"VLOOKUP(BaseData[[#This Row],[CODE_PARTNER]],COUNTRY[],2,0)","v":"Algeria"}]
["ES","Pipeline","FR","VIPPIRINEO","VIP Pirineos",0.81,"ENTRY",{"$f":"VLOOKUP(BaseData[[#This Row],[CODE_PARTNER]],COUNTRY[],2,0)","v":"France"}]
["ES","Pipeline","MA","TARIFA","Tarifa",1.59,"ENTRY",{"$f":"VLOOKUP(BaseData[[#This Row],[CODE_PARTNER]],COUNTRY[],2,0)","v":"Morocco"}]
["ES","Pipeline","PT","VIPIBERICO","VIP Iberico",0.28999999999999998,"ENTRY",{"$f":"VLOOKUP(BaseData[[#This Row],[CODE_PARTNER]],COUNTRY[],2,0)","v":"Portugal"}]
["ES","Pipeline","FR","VIPPIRINEO","VIP Pirineos",0.81,"EXIT",{"$f":"VLOOKUP(BaseData[[#This Row],[CODE_PARTNER]],COUNTRY[],2,0)","v":"France"}]
["ES","Pipeline","MA","TARIFA","Tarifa",0.11,"EXIT",{"$f":"VLOOKUP(BaseData[[#This Row],[CODE_PARTNER]],COUNTRY[],2,0)","v":"Morocco"}]
["ES","Pipeline","PT","VIPIBERICO","VIP Iberico",0.52,"EXIT",{"$f":"VLOOKUP(BaseData[[#This Row],[CODE_PARTNER]],COUNTRY[],2,0)","v":"Portugal"}]
["FI","LNG","LNG","NONSPEC","Not Elsewhere Specified","N/A","ENTRY",{"$f":"VLOOKUP(BaseData[[#This Row],[CODE_PARTNER]],COUNTRY[],2,0)","v":"LNG"}]
["FI","LNG","LNG","NONSPEC","Not Elsewhere Specified","N/A","EXIT",{"$f":"VLOOKUP(BaseData[[#This Row],[CODE_PARTNER]],COUNTRY[],2,0)","v":"LNG"}]
["FI","Pipeline","EE","BALTICCONN","Baltic Connector Inkoo/Paldiski",0.3,"ENTRY",{"$f":"VLOOKUP(BaseData[[#This Row],[CODE_PARTNER]],COUNTRY[],2,0)","v":"Estonia"}]
["FI","Pipeline","RU","IMATRA","Imatra",0.8,"ENTRY",{"$f":"VLOOKUP(BaseData[[#This Row],[CODE_PARTNER]],COUNTRY[],2,0)","v":"Russian Federation"}]
["FI","Pipeline","EE","BALTICCONN","Baltic Connector Inkoo/Paldiski",0.3,"EXIT",{"$f":"VLOOKUP(BaseData[[#This Row],[CODE_PARTNER]],COUNTRY[],2,0)","v":"Estonia"}]
["FR","LNG","LNG","DUNKER_LNG","Dunkerque LNG",2.0049999999999999,"ENTRY",{"$f":"VLOOKUP(BaseData[[#This Row],[CODE_PARTNER]],COUNTRY[],2,0)","v":"LNG"}]
["FR","LNG","LNG","FOS","Fos-sur-Mer",0.65,"ENTRY",{"$f":"VLOOKUP(BaseData[[#This Row],[CODE_PARTNER]],COUNTRY[],2,0)","v":"LNG"}]
["FR","LNG","LNG","MONTOIR","Montoir de Bretagne",1.1499999999999999,"ENTRY",{"$f":"VLOOKUP(BaseData[[#This Row],[CODE_PARTNER]],COUNTRY[],2,0)","v":"LNG"}]
["FR","Pipeline","BE","ALVERINGEM","Alveringem",1.0549999999999999,"ENTRY",{"$f":"VLOOKUP(BaseData[[#This Row],[CODE_PARTNER]],COUNTRY[],2,0)","v":"Belgium"}]
["FR","Pipeline","BE","BLAREGNIES","Taisnières (H)",0.95,"ENTRY",{"$f":"VLOOKUP(BaseData[[#This Row],[CODE_PARTNER]],COUNTRY[],2,0)","v":"Belgium"}]
["FR","Pipeline","BE","TASNIERES","Taisnières (L)\n",0.95,"ENTRY",{"$f":"VLOOKUP(BaseData[[#This Row],[CODE_PARTNER]],COUNTRY[],2,0)","v":"Belgium"}]
["FR","Pipeline","DE","OBERGAILBA","Medelsheim / Obergailbach",1.6,"ENTRY",{"$f":"VLOOKUP(BaseData[[#This Row],[CODE_PARTNER]],COUNTRY[],2,0)","v":"Germany"}]
["FR","Pipeline","NO","DUNKERQUE","Dunkerque",2.0499999999999998,"ENTRY",{"$f":"VLOOKUP(BaseData[[#This Row],[CODE_PARTNER]],COUNTRY[],2,0)","v":"Norway"}]
["FR","Pipeline","ES","VIPPIRINEO","VIP Pirineos","Virtual","ENTRY",{"$f":"VLOOKUP(BaseData[[#This Row],[CODE_PARTNER]],COUNTRY[],2,0)","v":"Spain"}]
["FR","Pipeline","CH","NONSPEC","Others","N/A","ENTRY",{"$f":"VLOOKUP(BaseData[[#This Row],[CODE_PARTNER]],COUNTRY[],2,0)","v":"Switzerland"}]
["FR","Pipeline","CH","OLTINGUE","Oltingue","N/A","ENTRY",{"$f":"VLOOKUP(BaseData[[#This Row],[CODE_PARTNER]],COUNTRY[],2,0)","v":"Switzerland"}]
["FR","Pipeline","BE","ALVERINGEM","Alveringem",1.0549999999999999,"EXIT",{"$f":"VLOOKUP(BaseData[[#This Row],[CODE_PARTNER]],COUNTRY[],2,0)","v":"Belgium"}]
["FR","Pipeline","ES","VIPPIRINEO","VIP Pirineos","Virtual","EXIT",{"$f":"VLOOKUP(BaseData[[#This Row],[CODE_PARTNER]],COUNTRY[],2,0)","v":"Spain"}]
["FR","Pipeline","CH","JURA","Jura",0.15,"EXIT",{"$f":"VLOOKUP(BaseData[[#This Row],[CODE_PARTNER]],COUNTRY[],2,0)","v":"Switzerland"}]
["FR","Pipeline","CH","NONSPEC","Not Elsewhere Specified","N/A","EXIT",{"$f":"VLOOKUP(BaseData[[#This Row],[CODE_PARTNER]],COUNTRY[],2,0)","v":"Switzerland"}]
["FR","Pipeline","CH","OLTINGUE","Oltingue",0.85,"EXIT",{"$f":"VLOOKUP(BaseData[[#This Row],[CODE_PARTNER]],COUNTRY[],2,0)","v":"Switzerland"}]
["GB","LNG","LNG","DRAGON","Dragon",1.2,"ENTRY",{"$f":"VLOOKUP(BaseData[[#This Row],[CODE_PARTNER]],COUNTRY[],2,0)","v":"LNG"}]
["GB","LNG","LNG","ISLE_GRAIN","Grain",2.3199999999999998,"ENTRY",{"$f":"VLOOKUP(BaseData[[#This Row],[CODE_PARTNER]],COUNTRY[],2,0)","v":"LNG"}]
["GB","LNG","LNG","SOUTHHOOK","South Hook",2.4,"ENTRY",{"$f":"VLOOKUP(BaseData[[#This Row],[CODE_PARTNER]],COUNTRY[],2,0)","v":"LNG"}]
["GB","Pipeline","BE","INTERCONN","Interconnector UK (INT)",2.91,"ENTRY",{"$f":"VLOOKUP(BaseData[[#This Row],[CODE_PARTNER]],COUNTRY[],2,0)","v":"Belgium"}]
["GB","Pipeline","NL","BBL","Balgzand Bacton Line (BBL)",2.23,"ENTRY",{"$f":"VLOOKUP(BaseData[[#This Row],[CODE_PARTNER]],COUNTRY[],2,0)","v":"Netherlands"}]
["GB","Pipeline","NO","EASINGTON","Langeled",3.08,"ENTRY",{"$f":"VLOOKUP(BaseData[[#This Row],[CODE_PARTNER]],COUNTRY[],2,0)","v":"Norway"}]
["GB","Pipeline","NO","STFERGUSA","via SAGE",0.28999999999999998,"ENTRY",{"$f":"VLOOKUP(BaseData[[#This Row],[CODE_PARTNER]],COUNTRY[],2,0)","v":"Norway"}]
["GB","Pipeline","NO","STFERGUSS","Tampen Link",1.75,"ENTRY",{"$f":"VLOOKUP(BaseData[[#This Row],[CODE_PARTNER]],COUNTRY[],2,0)","v":"Norway"}]
["GB","Pipeline","NO","STFERGUSV","Vesterled",1.5,"ENTRY",{"$f":"VLOOKUP(BaseData[[#This Row],[CODE_PARTNER]],COUNTRY[],2,0)","v":"Norway"}]
["GB","Pipeline","NO","TEESSIDEPI","via CATS",2,"ENTRY",{"$f":"VLOOKUP(BaseData[[#This Row],[CODE_PARTNER]],COUNTRY[],2,0)","v":"Norway"}]
["GB","Pipeline","BE","INTERCONN","Interconnector UK (INT)",2.36,"EXIT",{"$f":"VLOOKUP(BaseData[[#This Row],[CODE_PARTNER]],COUNTRY[],2,0)","v":"Belgium"}]
["GB","Pipeline","IE","MOFFAT","Moffat - Ireland",1.24,"EXIT",{"$f":"VLOOKUP(BaseData[[#This Row],[CODE_PARTNER]],COUNTRY[],2,0)","v":"Ireland"}]
["GB","Pipeline","IM","MOFFATIS","Moffat - Isle of Man",1.24,"EXIT",{"$f":"VLOOKUP(BaseData[[#This Row],[CODE_PARTNER]],COUNTRY[],2,0)","v":"Isle of Man"}]
["GB","Pipeline","NL","BBL","Balgzand Bacton Line (BBL)","N/A","EXIT",{"$f":"VLOOKUP(BaseData[[#This Row],[CODE_PARTNER]],COUNTRY[],2,0)","v":"Netherlands"}]
["GB","Pipeline","NL","WGT","Greater Markham Area (GMA) to WestGasTransport (WGT)",0.55000000000000004,"EXIT",{"$f":"VLOOKUP(BaseData[[#This Row],[CODE_PARTNER]],COUNTRY[],2,0)","v":"Netherlands"}]
["GR","LNG","LNG","ALEXANDROU","FSRU Alexandroupolis",0.91200000000000003,"ENTRY",{"$f":"VLOOKUP(BaseData[[#This Row],[CODE_PARTNER]],COUNTRY[],2,0)","v":"LNG"}]
["GR","LNG","LNG","REVITHOUSS","Revithoussa (NNGTS)",0.85099999999999998,"ENTRY",{"$f":"VLOOKUP(BaseData[[#This Row],[CODE_PARTNER]],COUNTRY[],2,0)","v":"LNG"}]
["GR","LNG","LNG","REVITHOUSS","Revithoussa (NNGTS)","N/A","EXIT",{"$f":"VLOOKUP(BaseData[[#This Row],[CODE_PARTNER]],COUNTRY[],2,0)","v":"LNG"}]
["GR","Pipeline","BG","KULA","Kulata (BG)/Sidirokastro(GR)",0.45500000000000002,"ENTRY",{"$f":"VLOOKUP(BaseData[[#This Row],[CODE_PARTNER]],COUNTRY[],2,0)","v":"Bulgaria"}]
["GR","Pipeline","TR","KIPI","Kipi",1.69,"ENTRY",{"$f":"VLOOKUP(BaseData[[#This Row],[CODE_PARTNER]],COUNTRY[],2,0)","v":"Turkey"}]
["GR","Pipeline","AL","KASTORIA","Kastoria-Ieropigi (TAP)",1.248,"EXIT",{"$f":"VLOOKUP(BaseData[[#This Row],[CODE_PARTNER]],COUNTRY[],2,0)","v":"Albania"}]
["GR","Pipeline","BG","KULA","Kulata (BG)/Sidirokastro(GR)",0.251,"EXIT",{"$f":"VLOOKUP(BaseData[[#This Row],[CODE_PARTNER]],COUNTRY[],2,0)","v":"Bulgaria"}]
["GR","Pipeline","BG","STARAZAGOR","IP Stara Zagora",0.34200000000000003,"EXIT",{"$f":"VLOOKUP(BaseData[[#This Row],[CODE_PARTNER]],COUNTRY[],2,0)","v":"Bulgaria"}]
["HR","LNG","LNG","KRK","LNG TEMINAL - Krk","0.338","ENTRY",{"$f":"VLOOKUP(BaseData[[#This Row],[CODE_PARTNER]],COUNTRY[],2,0)","v":"LNG"}]
["HR","LNG","LNG","KRK","LNG TEMINAL - Krk","0.338","EXIT",{"$f":"VLOOKUP(BaseData[[#This Row],[CODE_PARTNER]],COUNTRY[],2,0)","v":"LNG"}]
["HR","Pipeline","HU","DRAVASZER","Dravaszerdahely","0.3  ","ENTRY",{"$f":"VLOOKUP(BaseData[[#This Row],[CODE_PARTNER]],COUNTRY[],2,0)","v":"Hungary"}]
["HR","Pipeline","SI","ROGATEC","Rogatec","0.2 ","ENTRY",{"$f":"VLOOKUP(BaseData[[#This Row],[CODE_PARTNER]],COUNTRY[],2,0)","v":"Slovenia"}]
["HR","Pipeline","HU","DRAVASZER","Dravaszerdahely","0.2  ","EXIT",{"$f":"VLOOKUP(BaseData[[#This Row],[CODE_PARTNER]],COUNTRY[],2,0)","v":"Hungary"}]
["HR","Pipeline","IT","FIVANAA","Exploitation field Ivana A",0.1,"EXIT",{"$f":"VLOOKUP(BaseData[[#This Row],[CODE_PARTNER]],COUNTRY[],2,0)","v":"Italy"}]
["HR","Pipeline","IT","FMARICA","Exploitation field Marica",0.1,"EXIT",{"$f":"VLOOKUP(BaseData[[#This Row],[CODE_PARTNER]],COUNTRY[],2,0)","v":"Italy"}]
["HR","Pipeline","SI","ROGATEC","Rogatec","0.03","EXIT",{"$f":"VLOOKUP(BaseData[[#This Row],[CODE_PARTNER]],COUNTRY[],2,0)","v":"Slovenia"}]
["HU","Pipeline","AT","MOSONMAGYA","Mosonmagyarovar",0.6,"ENTRY",{"$f":"VLOOKUP(BaseData[[#This Row],[CODE_PARTNER]],COUNTRY[],2,0)","v":"Austria"}]
["HU","Pipeline","HR","DRAVASZER","Dravaszerdahely",0.2,"ENTRY",{"$f":"VLOOKUP(BaseData[[#This Row],[CODE_PARTNER]],COUNTRY[],2,0)","v":"Croatia"}]
["HU","Pipeline","RO","CSANADPA","Csanadpalota",0.2,"ENTRY",{"$f":"VLOOKUP(BaseData[[#This Row],[CODE_PARTNER]],COUNTRY[],2,0)","v":"Romania"}]
["HU","Pipeline","RS","KISKUNDORO","Kiskundorozsma",0.95,"ENTRY",{"$f":"VLOOKUP(BaseData[[#This Row],[CODE_PARTNER]],COUNTRY[],2,0)","v":"Serbia"}]
["HU","Pipeline","SK","VELKEZ","Balassagyarmat / Velke Zlievce",0.5,"ENTRY",{"$f":"VLOOKUP(BaseData[[#This Row],[CODE_PARTNER]],COUNTRY[],2,0)","v":"Slovak Republic"}]
["HU","Pipeline","UA","BEREGDAROC","VIP Bereg",2,"ENTRY",{"$f":"VLOOKUP(BaseData[[#This Row],[CODE_PARTNER]],COUNTRY[],2,0)","v":"Ukraine"}]
["HU","Pipeline","HR","DRAVASZER","Dravaszerdahely",0.3,"EXIT",{"$f":"VLOOKUP(BaseData[[#This Row],[CODE_PARTNER]],COUNTRY[],2,0)","v":"Croatia"}]
["HU","Pipeline","RO","CSANADPA","Csanadpalota",0.3,"EXIT",{"$f":"VLOOKUP(BaseData[[#This Row],[CODE_PARTNER]],COUNTRY[],2,0)","v":"Romania"}]
["HU","Pipeline","RS","KISKUNDORO","Kiskundorozsma",0.55000000000000004,"EXIT",{"$f":"VLOOKUP(BaseData[[#This Row],[CODE_PARTNER]],COUNTRY[],2,0)","v":"Serbia"}]
["HU","Pipeline","SK","VELKEZ","Balassagyarmat / Velke Zlievce",0.19,"EXIT",{"$f":"VLOOKUP(BaseData[[#This Row],[CODE_PARTNER]],COUNTRY[],2,0)","v":"Slovak Republic"}]
["HU","Pipeline","UA","BEREGDAROC","VIP Bereg",0.7,"EXIT",{"$f":"VLOOKUP(BaseData[[#This Row],[CODE_PARTNER]],COUNTRY[],2,0)","v":"Ukraine"}]
["IE","Pipeline","GB","MOFFAT","Moffat",1.1200000000000001,"ENTRY",{"$f":"VLOOKUP(BaseData[[#This Row],[CODE_PARTNER]],COUNTRY[],2,0)","v":"United Kingdom"}]
["IT","LNG","LNG","ADRIATIC","Cavarzere",1.1000000000000001,"ENTRY",{"$f":"VLOOKUP(BaseData[[#This Row],[CODE_PARTNER]],COUNTRY[],2,0)","v":"LNG"}]
["IT","LNG","LNG","LIVORNO","Livorno",0.63,"ENTRY",{"$f":"VLOOKUP(BaseData[[#This Row],[CODE_PARTNER]],COUNTRY[],2,0)","v":"LNG"}]
["IT","LNG","LNG","PANIGAGLIA","Panigaglia",0.54,"ENTRY",{"$f":"VLOOKUP(BaseData[[#This Row],[CODE_PARTNER]],COUNTRY[],2,0)","v":"LNG"}]
["IT","LNG","LNG","PIOMBINO","Piombino",0.5,"ENTRY",{"$f":"VLOOKUP(BaseData[[#This Row],[CODE_PARTNER]],COUNTRY[],2,0)","v":"LNG"}]
["IT","Pipeline","AL","MELENDUGNO","Melendugno (TAP)","N/A","ENTRY",{"$f":"VLOOKUP(BaseData[[#This Row],[CODE_PARTNER]],COUNTRY[],2,0)","v":"Albania"}]
["IT","Pipeline","AT","TARVISIO","Arnoldstein / Tarvisio",4.99,"ENTRY",{"$f":"VLOOKUP(BaseData[[#This Row],[CODE_PARTNER]],COUNTRY[],2,0)","v":"Austria"}]
["IT","Pipeline","HR","NONSPEC","Others (Falconara + Casalborsetti)","N/A","ENTRY",{"$f":"VLOOKUP(BaseData[[#This Row],[CODE_PARTNER]],COUNTRY[],2,0)","v":"Croatia"}]
["IT","Pipeline","LY","GELA","Gela",1.46,"ENTRY",{"$f":"VLOOKUP(BaseData[[#This Row],[CODE_PARTNER]],COUNTRY[],2,0)","v":"Libya"}]
["IT","Pipeline","SI","GORIZIA","Gorizia",0.2,"ENTRY",{"$f":"VLOOKUP(BaseData[[#This Row],[CODE_PARTNER]],COUNTRY[],2,0)","v":"Slovenia"}]
["IT","Pipeline","CH","GRIESPASS","Griespass",2.7,"ENTRY",{"$f":"VLOOKUP(BaseData[[#This Row],[CODE_PARTNER]],COUNTRY[],2,0)","v":"Switzerland"}]
["IT","Pipeline","TN","MAZARA","Mazara del Vallo",4.4000000000000004,"ENTRY",{"$f":"VLOOKUP(BaseData[[#This Row],[CODE_PARTNER]],COUNTRY[],2,0)","v":"Tunisia"}]
["IT","Pipeline","AL","MELENDUGNO","Melendugno (TAP)","N/A","EXIT",{"$f":"VLOOKUP(BaseData[[#This Row],[CODE_PARTNER]],COUNTRY[],2,0)","v":"Albania"}]
["IT","Pipeline","AT","TARVISIO","Arnoldstein / Tarvisio",0.375,"EXIT",{"$f":"VLOOKUP(BaseData[[#This Row],[CODE_PARTNER]],COUNTRY[],2,0)","v":"Austria"}]
["IT","Pipeline","SI","GORIZIA","Gorizia",0.183,"EXIT",{"$f":"VLOOKUP(BaseData[[#This Row],[CODE_PARTNER]],COUNTRY[],2,0)","v":"Slovenia"}]
["IT","Pipeline","CH","BIZZARONE","Bizzarone Como",0.05,"EXIT",{"$f":"VLOOKUP(BaseData[[#This Row],[CODE_PARTNER]],COUNTRY[],2,0)","v":"Switzerland"}]
["IT","Pipeline","CH","GRIESPASS","Griespass",0.21,"EXIT",{"$f":"VLOOKUP(BaseData[[#This Row],[CODE_PARTNER]],COUNTRY[],2,0)","v":"Switzerland"}]
["LT","LNG","LNG","KLAIPEDA","Klaipeda",0.51,"ENTRY",{"$f":"VLOOKUP(BaseData[[#This Row],[CODE_PARTNER]],COUNTRY[],2,0)","v":"LNG"}]
["LT","Pipeline","BY","KOTLOVKA","Kotlovka",1.3,"ENTRY",{"$f":"VLOOKUP(BaseData[[#This Row],[CODE_PARTNER]],COUNTRY[],2,0)","v":"Belarus"}]
["LT","Pipeline","BY","PRIVALKA","Privalka-Raigardas",0.01,"ENTRY",{"$f":"VLOOKUP(BaseData[[#This Row],[CODE_PARTNER]],COUNTRY[],2,0)","v":"Belarus"}]
["LT","Pipeline","LV","BAUSKA","Bauska","N/A","ENTRY",{"$f":"VLOOKUP(BaseData[[#This Row],[CODE_PARTNER]],COUNTRY[],2,0)","v":"Latvia"}]
["LT","Pipeline","LV","KIEMENAI","Kiemenai",0.26,"ENTRY",{"$f":"VLOOKUP(BaseData[[#This Row],[CODE_PARTNER]],COUNTRY[],2,0)","v":"Latvia"}]
["LT","Pipeline","PL","SANTAKA","Santaka","N/A","ENTRY",{"$f":"VLOOKUP(BaseData[[#This Row],[CODE_PARTNER]],COUNTRY[],2,0)","v":"Poland"}]
["LT","Pipeline","LV","KIEMENAI","Kiemenai",0.26,"EXIT",{"$f":"VLOOKUP(BaseData[[#This Row],[CODE_PARTNER]],COUNTRY[],2,0)","v":"Latvia"}]
["LT","Pipeline","PL","SANTAKA","Santaka","N/A","EXIT",{"$f":"VLOOKUP(BaseData[[#This Row],[CODE_PARTNER]],COUNTRY[],2,0)","v":"Poland"}]
["LT","Pipeline","RU","SAKIAI","Sâkiai",0.44,"EXIT",{"$f":"VLOOKUP(BaseData[[#This Row],[CODE_PARTNER]],COUNTRY[],2,0)","v":"Russian Federation"}]
["LU","Pipeline","BE","BRAS","Bras",0.11,"ENTRY",{"$f":"VLOOKUP(BaseData[[#This Row],[CODE_PARTNER]],COUNTRY[],2,0)","v":"Belgium"}]
["LU","Pipeline","BE","PETANGE","Petange",7.0000000000000007E-2,"ENTRY",{"$f":"VLOOKUP(BaseData[[#This Row],[CODE_PARTNER]],COUNTRY[],2,0)","v":"Belgium"}]
["LU","Pipeline","DE","REMICH","Remich",0.15,"ENTRY",{"$f":"VLOOKUP(BaseData[[#This Row],[CODE_PARTNER]],COUNTRY[],2,0)","v":"Germany"}]
["LV","Pipeline","EE","KARKSI","Karksi",0.28999999999999998,"ENTRY",{"$f":"VLOOKUP(BaseData[[#This Row],[CODE_PARTNER]],COUNTRY[],2,0)","v":"Estonia"}]
["LV","Pipeline","EE","KORNETI","Korneti",0.4,"ENTRY",{"$f":"VLOOKUP(BaseData[[#This Row],[CODE_PARTNER]],COUNTRY[],2,0)","v":"Estonia"}]
["LV","Pipeline","LT","KIEMENAI","Kiemenai",0.34,"ENTRY",{"$f":"VLOOKUP(BaseData[[#This Row],[CODE_PARTNER]],COUNTRY[],2,0)","v":"Lithuania"}]
["LV","Pipeline","EE","KARKSI","Karksi",0.28999999999999998,"EXIT",{"$f":"VLOOKUP(BaseData[[#This Row],[CODE_PARTNER]],COUNTRY[],2,0)","v":"Estonia"}]
["LV","Pipeline","EE","KORNETI","Korneti",0.4,"EXIT",{"$f":"VLOOKUP(BaseData[[#This Row],[CODE_PARTNER]],COUNTRY[],2,0)","v":"Estonia"}]
["LV","Pipeline","LT","KIEMENAI","Kiemenai",0.31,"EXIT",{"$f":"VLOOKUP(BaseData[[#This Row],[CODE_PARTNER]],COUNTRY[],2,0)","v":"Lithuania"}]
["NO","LNG","LNG","SNOHVIT","Snohvit","N/A","EXIT",{"$f":"VLOOKUP(BaseData[[#This Row],[CODE_PARTNER]],COUNTRY[],2,0)","v":"LNG"}]
["NO","Pipeline","BE","ZEEBRU_ZPT","Zeebrugge (ZPT)",1.6830000000000001,"EXIT",{"$f":"VLOOKUP(BaseData[[#This Row],[CODE_PARTNER]],COUNTRY[],2,0)","v":"Belgium"}]
["NO","Pipeline","DK","NYBRO","Nybro",1.0669999999999999,"EXIT",{"$f":"VLOOKUP(BaseData[[#This Row],[CODE_PARTNER]],COUNTRY[],2,0)","v":"Denmark"}]
["NO","Pipeline","FR","DUNKERQUE","Dunkerque",1.992,"EXIT",{"$f":"VLOOKUP(BaseData[[#This Row],[CODE_PARTNER]],COUNTRY[],2,0)","v":"France"}]
["NO","Pipeline","DE","DORNUM","Dornum",2.72,"EXIT",{"$f":"VLOOKUP(BaseData[[#This Row],[CODE_PARTNER]],COUNTRY[],2,0)","v":"Germany"}]
["NO","Pipeline","DE","EMDEN_EPT1","Emden - EPT1 (DE) / Emden - EMS (NO)",3.6459999999999999,"EXIT",{"$f":"VLOOKUP(BaseData[[#This Row],[CODE_PARTNER]],COUNTRY[],2,0)","v":"Germany"}]
["NO","Pipeline","GB","EASINGTON","Easington",2.9670000000000001,"EXIT",{"$f":"VLOOKUP(BaseData[[#This Row],[CODE_PARTNER]],COUNTRY[],2,0)","v":"United Kingdom"}]
["NO","Pipeline","GB","STFERGUSGJ","St Fergus (GB) / Gjøa Gas Pipeline (NO)",2.3460000000000001,"EXIT",{"$f":"VLOOKUP(BaseData[[#This Row],[CODE_PARTNER]],COUNTRY[],2,0)","v":"United Kingdom"}]
["NO","Pipeline","GB","STFERGUSTL","St Fergus (GB) / Statfjord-Tampen Link (NO)",2.3460000000000001,"EXIT",{"$f":"VLOOKUP(BaseData[[#This Row],[CODE_PARTNER]],COUNTRY[],2,0)","v":"United Kingdom"}]
["NO","Pipeline","GB","STFERGUSV","St Fergus (GB) / Vesterled (NO)",1.242,"EXIT",{"$f":"VLOOKUP(BaseData[[#This Row],[CODE_PARTNER]],COUNTRY[],2,0)","v":"United Kingdom"}]
["PL","LNG","LNG","SWINOUJSCI","Świnoujście",0.86497999999999997,"ENTRY",{"$f":"VLOOKUP(BaseData[[#This Row],[CODE_PARTNER]],COUNTRY[],2,0)","v":"LNG"}]
["PL","Pipeline","BY","KONDRATKI","Kondratki","N/A","ENTRY",{"$f":"VLOOKUP(BaseData[[#This Row],[CODE_PARTNER]],COUNTRY[],2,0)","v":"Belarus"}]
["PL","Pipeline","CZ","BRANICE","Branice",null,"ENTRY",{"$f":"VLOOKUP(BaseData[[#This Row],[CODE_PARTNER]],COUNTRY[],2,0)","v":"Czech Republic"}]
["PL","Pipeline","CZ","MORAVIA","Cieszyn (PL) / Cesky Tesin (CZ)",0.10970000000000001,"ENTRY",{"$f":"VLOOKUP(BaseData[[#This Row],[CODE_PARTNER]],COUNTRY[],2,0)","v":"Czech Republic"}]
["PL","Pipeline","DK","FAXE","Faxe",1.2030000000000001,"ENTRY",{"$f":"VLOOKUP(BaseData[[#This Row],[CODE_PARTNER]],COUNTRY[],2,0)","v":"Denmark"}]
["PL","Pipeline","DE","FINKENHERD","Brieskow-Finkenheerd",2.742E-2,"ENTRY",{"$f":"VLOOKUP(BaseData[[#This Row],[CODE_PARTNER]],COUNTRY[],2,0)","v":"Germany"}]
["PL","Pipeline","DE","GUBIN","Gubin",2.1099999999999999E-3,"ENTRY",{"$f":"VLOOKUP(BaseData[[#This Row],[CODE_PARTNER]],COUNTRY[],2,0)","v":"Germany"}]
["PL","Pipeline","DE","LASOW","Görlitz/ Lasów",0.18987999999999999,"ENTRY",{"$f":"VLOOKUP(BaseData[[#This Row],[CODE_PARTNER]],COUNTRY[],2,0)","v":"Germany"}]
["PL","Pipeline","DE","MALLNOW","Mallnow",1.30802,"ENTRY",{"$f":"VLOOKUP(BaseData[[#This Row],[CODE_PARTNER]],COUNTRY[],2,0)","v":"Germany"}]
["PL","Pipeline","LT","SANTAKA","Santaka",0.28999999999999998,"ENTRY",{"$f":"VLOOKUP(BaseData[[#This Row],[CODE_PARTNER]],COUNTRY[],2,0)","v":"Lithuania"}]
["PL","Pipeline","SK","VYRAVA","Výrava",0.68600000000000005,"ENTRY",{"$f":"VLOOKUP(BaseData[[#This Row],[CODE_PARTNER]],COUNTRY[],2,0)","v":"Slovak Republic"}]
["PL","Pipeline","UA","DROZDOWICZ","Drozdowicze",0.68564999999999998,"ENTRY",{"$f":"VLOOKUP(BaseData[[#This Row],[CODE_PARTNER]],COUNTRY[],2,0)","v":"Ukraine"}]
["PL","Pipeline","DE","KAMMINKE","Kamminke",1.5820000000000001E-2,"EXIT",{"$f":"VLOOKUP(BaseData[[#This Row],[CODE_PARTNER]],COUNTRY[],2,0)","v":"Germany"}]
["PL","Pipeline","DE","MALLNOW","Mallnow",3.69198,"EXIT",{"$f":"VLOOKUP(BaseData[[#This Row],[CODE_PARTNER]],COUNTRY[],2,0)","v":"Germany"}]
["PL","Pipeline","LT","SANTAKA","Santaka",0.28999999999999998,"EXIT",{"$f":"VLOOKUP(BaseData[[#This Row],[CODE_PARTNER]],COUNTRY[],2,0)","v":"Lithuania"}]
["PL","Pipeline","SK","VYRAVA","Výrava",0.56962000000000002,"EXIT",{"$f":"VLOOKUP(BaseData[[#This Row],[CODE_PARTNER]],COUNTRY[],2,0)","v":"Slovak Republic"}]
["PL","Pipeline","UA","HERMANOWIC","Hermanowice",0.26371,"EXIT",{"$f":"VLOOKUP(BaseData[[#This Row],[CODE_PARTNER]],COUNTRY[],2,0)","v":"Ukraine"}]
["PT","LNG","LNG","SINES","Sines",0.82,"ENTRY",{"$f":"VLOOKUP(BaseData[[#This Row],[CODE_PARTNER]],COUNTRY[],2,0)","v":"LNG"}]
["PT","Pipeline","ES","BADAJOZ","Badajoz / C. Maior",0.5,"ENTRY",{"$f":"VLOOKUP(BaseData[[#This Row],[CODE_PARTNER]],COUNTRY[],2,0)","v":"Spain"}]
["PT","Pipeline","ES","TUY","Valença Minho / Tuy",0.11,"ENTRY",{"$f":"VLOOKUP(BaseData[[#This Row],[CODE_PARTNER]],COUNTRY[],2,0)","v":"Spain"}]
["PT","Pipeline","ES","BADAJOZ","Badajoz / C. Maior",0.26,"EXIT",{"$f":"VLOOKUP(BaseData[[#This Row],[CODE_PARTNER]],COUNTRY[],2,0)","v":"Spain"}]
["PT","Pipeline","ES","TUY","Valença Minho / Tuy",0.09,"EXIT",{"$f":"VLOOKUP(BaseData[[#This Row],[CODE_PARTNER]],COUNTRY[],2,0)","v":"Spain"}]
["RO","Pipeline","BG","GIURGIU","Ruse (BG)/Giurgiu (RO)",0.105,"ENTRY",{"$f":"VLOOKUP(BaseData[[#This Row],[CODE_PARTNER]],COUNTRY[],2,0)","v":"Bulgaria"}]
["RO","Pipeline","BG","NEGRU_VODA","Negru Voda 1 (RO)/Kardam (BG)",0.60599999999999998,"ENTRY",{"$f":"VLOOKUP(BaseData[[#This Row],[CODE_PARTNER]],COUNTRY[],2,0)","v":"Bulgaria"}]
["RO","Pipeline","HU","CSANADPA","Csanadpalota",0.3,"ENTRY",{"$f":"VLOOKUP(BaseData[[#This Row],[CODE_PARTNER]],COUNTRY[],2,0)","v":"Hungary"}]
["RO","Pipeline","MD","UNGHENI","Ungheni",8.4000000000000005E-2,"ENTRY",{"$f":"VLOOKUP(BaseData[[#This Row],[CODE_PARTNER]],COUNTRY[],2,0)","v":"Moldova, Republic of"}]
["RO","Pipeline","UA","ISACCEA","Isaccea (RO) / Orlovka (UA)",0.78200000000000003,"ENTRY",{"$f":"VLOOKUP(BaseData[[#This Row],[CODE_PARTNER]],COUNTRY[],2,0)","v":"Ukraine"}]
["RO","Pipeline","UA","MEDIESU","MEDIESU AURIT (RO) - TEKOVO (UA)",0.78200000000000003,"ENTRY",{"$f":"VLOOKUP(BaseData[[#This Row],[CODE_PARTNER]],COUNTRY[],2,0)","v":"Ukraine"}]
["RO","Pipeline","BG","GIURGIU","Ruse (BG)/Giurgiu (RO)",0.17100000000000001,"EXIT",{"$f":"VLOOKUP(BaseData[[#This Row],[CODE_PARTNER]],COUNTRY[],2,0)","v":"Bulgaria"}]
["RO","Pipeline","BG","NEGRU_VODA","Negru Voda 1 (RO)/Kardam (BG)",0.72699999999999998,"EXIT",{"$f":"VLOOKUP(BaseData[[#This Row],[CODE_PARTNER]],COUNTRY[],2,0)","v":"Bulgaria"}]
["RO","Pipeline","HU","CSANADPA","Csanadpalota",0.3,"EXIT",{"$f":"VLOOKUP(BaseData[[#This Row],[CODE_PARTNER]],COUNTRY[],2,0)","v":"Hungary"}]
["RO","Pipeline","MD","UNGHENI","Ungheni",0.215,"EXIT",{"$f":"VLOOKUP(BaseData[[#This Row],[CODE_PARTNER]],COUNTRY[],2,0)","v":"Moldova, Republic of"}]
["RO","Pipeline","UA","ISACCEA","Isaccea (RO) / Orlovka (UA)",0.47099999999999997,"EXIT",{"$f":"VLOOKUP(BaseData[[#This Row],[CODE_PARTNER]],COUNTRY[],2,0)","v":"Ukraine"}]
["SE","Pipeline","DK","DRAGOR","Dragor",0.36,"ENTRY",{"$f":"VLOOKUP(BaseData[[#This Row],[CODE_PARTNER]],COUNTRY[],2,0)","v":"Denmark"}]
["SI","Pipeline","AT","MURFELD","Murfeld",0.42,"ENTRY",{"$f":"VLOOKUP(BaseData[[#This Row],[CODE_PARTNER]],COUNTRY[],2,0)","v":"Austria"}]
["SI","Pipeline","HR","ROGATEC","Rogatec",0.03,"ENTRY",{"$f":"VLOOKUP(BaseData[[#This Row],[CODE_PARTNER]],COUNTRY[],2,0)","v":"Croatia"}]
["SI","Pipeline","IT","GORIZIA","Gorizia",0.17,"ENTRY",{"$f":"VLOOKUP(BaseData[[#This Row],[CODE_PARTNER]],COUNTRY[],2,0)","v":"Italy"}]
["SI","Pipeline","HR","ROGATEC","Rogatec",0.27,"EXIT",{"$f":"VLOOKUP(BaseData[[#This Row],[CODE_PARTNER]],COUNTRY[],2,0)","v":"Croatia"}]
["SI","Pipeline","IT","GORIZIA","Gorizia",0.19,"EXIT",{"$f":"VLOOKUP(BaseData[[#This Row],[CODE_PARTNER]],COUNTRY[],2,0)","v":"Italy"}]
["SK","Pipeline","AT","BAUMGARTEN","Baumgarten",0.97499999999999998,"ENTRY",{"$f":"VLOOKUP(BaseData[[#This Row],[CODE_PARTNER]],COUNTRY[],2,0)","v":"Austria"}]
["SK","Pipeline","CZ","LANZHOT","Lanzhot",2.74,"ENTRY",{"$f":"VLOOKUP(BaseData[[#This Row],[CODE_PARTNER]],COUNTRY[],2,0)","v":"Czech Republic"}]
["SK","Pipeline","HU","VELKEZ","Balassagyarmat / Velke Zlievce","N/A","ENTRY",{"$f":"VLOOKUP(BaseData[[#This Row],[CODE_PARTNER]],COUNTRY[],2,0)","v":"Hungary"}]
["SK","Pipeline","PL","VYRAVA","Výrava","N/A","ENTRY",{"$f":"VLOOKUP(BaseData[[#This Row],[CODE_PARTNER]],COUNTRY[],2,0)","v":"Poland"}]
["SK","Pipeline","UA","BUDINCE","Budince","N/A","ENTRY",{"$f":"VLOOKUP(BaseData[[#This Row],[CODE_PARTNER]],COUNTRY[],2,0)","v":"Ukraine"}]
["SK","Pipeline","UA","VELKE","Velke Kapusany",8.3000000000000007,"ENTRY",{"$f":"VLOOKUP(BaseData[[#This Row],[CODE_PARTNER]],COUNTRY[],2,0)","v":"Ukraine"}]
["SK","Pipeline","AT","BAUMGARTEN","Baumgarten",6.35,"EXIT",{"$f":"VLOOKUP(BaseData[[#This Row],[CODE_PARTNER]],COUNTRY[],2,0)","v":"Austria"}]
["SK","Pipeline","CZ","LANZHOT","Lanzhot",1.58,"EXIT",{"$f":"VLOOKUP(BaseData[[#This Row],[CODE_PARTNER]],COUNTRY[],2,0)","v":"Czech Republic"}]
["SK","Pipeline","HU","VELKEZ","Balassagyarmat / Velke Zlievce",0.5,"EXIT",{"$f":"VLOOKUP(BaseData[[#This Row],[CODE_PARTNER]],COUNTRY[],2,0)","v":"Hungary"}]
["SK","Pipeline","PL","VYRAVA","Výrava","N/A","EXIT",{"$f":"VLOOKUP(BaseData[[#This Row],[CODE_PARTNER]],COUNTRY[],2,0)","v":"Poland"}]
["SK","Pipeline","UA","BUDINCE","Budince",1.1100000000000001,"EXIT",{"$f":"VLOOKUP(BaseData[[#This Row],[CODE_PARTNER]],COUNTRY[],2,0)","v":"Ukraine"}]
["TR","LNG","LNG","DORTYOL","Dörtyol FSRU / Hatay",1.167,"ENTRY",{"$f":"VLOOKUP(BaseData[[#This Row],[CODE_PARTNER]],COUNTRY[],2,0)","v":"LNG"}]
["TR","LNG","LNG","ETKI","Etki FSRU",null,"ENTRY",{"$f":"VLOOKUP(BaseData[[#This Row],[CODE_PARTNER]],COUNTRY[],2,0)","v":"LNG"}]
["TR","LNG","LNG","IZMIR","Izmir",2.8130000000000002,"ENTRY",{"$f":"VLOOKUP(BaseData[[#This Row],[CODE_PARTNER]],COUNTRY[],2,0)","v":"LNG"}]
["TR","LNG","LNG","MARMARA","Marmara Ereglisi",1.464,"ENTRY",{"$f":"VLOOKUP(BaseData[[#This Row],[CODE_PARTNER]],COUNTRY[],2,0)","v":"LNG"}]
["TR","LNG","LNG","SAROS","Saros FSRU / Çanakkale",0.83299999999999996,"ENTRY",{"$f":"VLOOKUP(BaseData[[#This Row],[CODE_PARTNER]],COUNTRY[],2,0)","v":"LNG"}]
["TR","LNG","LNG","EDIRNE","Edirne",null,"EXIT",{"$f":"VLOOKUP(BaseData[[#This Row],[CODE_PARTNER]],COUNTRY[],2,0)","v":"LNG"}]
["TR","LNG","LNG","MARMARA","Marmara Ereglisi",1.464,"EXIT",{"$f":"VLOOKUP(BaseData[[#This Row],[CODE_PARTNER]],COUNTRY[],2,0)","v":"LNG"}]
["TR","Pipeline","BG","MALKOCLAR","Strandzha  (BG)/ Malkoclar (TR)",0.122,"ENTRY",{"$f":"VLOOKUP(BaseData[[#This Row],[CODE_PARTNER]],COUNTRY[],2,0)","v":"Bulgaria"}]
["TR","Pipeline","GE","TURKGOZU","Türkgözü",0.79500000000000004,"ENTRY",{"$f":"VLOOKUP(BaseData[[#This Row],[CODE_PARTNER]],COUNTRY[],2,0)","v":"Georgia"}]
["TR","Pipeline","IR","DOGUBAJAZI","Dogubajazit",1.1919999999999999,"ENTRY",{"$f":"VLOOKUP(BaseData[[#This Row],[CODE_PARTNER]],COUNTRY[],2,0)","v":"Iran, Islamic Republic of"}]
["TR","Pipeline","RU","KIYIKOY","Kıyıköy",1.93,"ENTRY",{"$f":"VLOOKUP(BaseData[[#This Row],[CODE_PARTNER]],COUNTRY[],2,0)","v":"Russian Federation"}]
["TR","Pipeline","RU","SAMSUN","Samsun",1.9730000000000001,"ENTRY",{"$f":"VLOOKUP(BaseData[[#This Row],[CODE_PARTNER]],COUNTRY[],2,0)","v":"Russian Federation"}]
["TR","Pipeline","BG","MALKOCLAR","Strandzha  (BG)/ Malkoclar (TR)",0.122,"EXIT",{"$f":"VLOOKUP(BaseData[[#This Row],[CODE_PARTNER]],COUNTRY[],2,0)","v":"Bulgaria"}]
["TR","Pipeline","GR","KIPI","Kipi",0.191,"EXIT",{"$f":"VLOOKUP(BaseData[[#This Row],[CODE_PARTNER]],COUNTRY[],2,0)","v":"Greece"}]

{"sheet":"TimeSeries","index":8,"n_rows":29,"n_cols":53,"rows_kept":29,"cut":false,"hidden":false,"merged":[]}
[null,"Gas Trade Flows Questionnaire"]
[null,"Time Series"]
[]
[null,"Selected Country","Austria"]
[null,"Reporting year",2024]
[null,"Export to","File Location","C:\\Users\\U322247\\Desktop\\Personal\\IEA\\"]
[null,null,"File Name","TR_GTFM_2024.csv"]
[]
[]
[]
[null,null,null,null,null,{"$f":"DATE(TSYear,1,1)","v":"2024-01-01"},null,null,null,{"$f":"DATE(TSYear,2,1)","v":"2024-02-01"},null,null,null,{"$f":"DATE(TSYear,3,1)","v":"2024-03-01"},null,null,null,{"$f":"DATE(TSYear,4,1)","v":"2024-04-01"},null,null,null,{"$f":"DATE(TSYear,5,1)","v":"2024-05-01"},null,null,null,{"$f":"DATE(TSYear,6,1)","v":"2024-06-01"},null,null,null,{"$f":"DATE(TSYear,7,1)","v":"2024-07-01"},null,null,null,{"$f":"DATE(TSYear,8,1)","v":"2024-08-01"},null,null,null,{"$f":"DATE(TSYear,9,1)","v":"2024-09-01"},null,null,null,{"$f":"DATE(TSYear,10,1)","v":"2024-10-01"},null,null,null,{"$f":"DATE(TSYear,11,1)","v":"2024-11-01"},null,null,null,{"$f":"DATE(TSYear,12,1)","v":"2024-12-01"}]
[null,"Flow","Partner","Location","Max flow\n(Mcm/h)","Million m3","FLAG","TJ","FLAG","Million m3","FLAG","TJ","FLAG","Million m3","FLAG","TJ","FLAG","Million m3","FLAG","TJ","FLAG","Million m3","FLAG","TJ","FLAG","Million m3","FLAG","TJ","FLAG","Million m3","FLAG","TJ","FLAG","Million m3","FLAG","TJ","FLAG","Million m3","FLAG","TJ","FLAG","Million m3","FLAG","TJ","FLAG","Million m3","FLAG","TJ","FLAG","Million m3","FLAG","TJ","FLAG"]
[null,"ENTRY POINTS"]
[null,"Pipeline","Italy","Arnoldstein / Tarvisio",1.0229999999999999]
[null,"Pipeline","Slovak Republic","Baumgarten",8.7840000000000007]
[null,"Pipeline","Switzerland","Hochst, Feldkirch/Bangs (Distribution networks)",8.6999999999999994E-2]
[null,"Pipeline","Czech Republic","Laa/Thaya (Distribution networks)",1.4E-2]
[null,"Pipeline","Germany","Oberkappel, Überackern, Gas storage and distribution networks",4.6580000000000004]
[null,"Pipeline","Total",null,14.565999999999999,0,null,0,null,0,null,0,null,0,null,0,null,0,null,0,null,0,null,0,null,0,null,0,null,0,null,0,null,0,null,0,null,0,null,0,null,0,null,0,null,0,null,0,null,0,null,0]
[null,"EXIT POINTS"]
[null,"Pipeline","Italy","Arnoldstein / Tarvisio",4.5720000000000001]
[null,"Pipeline","Slovak Republic","Baumgarten",1.0620000000000001]
[null,"Pipeline","Switzerland","Hochst, Feldkirch/Bangs (Distribution networks)",8.6999999999999994E-2]
[null,"Pipeline","Czech Republic","Laa/Thaya (Distribution networks)",8.0000000000000002E-3]
[null,"Pipeline","Hungary","Mosonmagyarovar",0.59399999999999997]
[null,"Pipeline","Slovenia","Murfeld",0.42899999999999999]
[null,"Pipeline","Germany","Oberkappel, Überackern, Gas storage and distribution networks",5.71]
[null,"Pipeline","Liechtenstein","Ruggell (Distribution networks)",2.3E-2]
[null,"Pipeline","Total",null,12.484999999999999,0,null,0,null,0,null,0,null,0,null,0,null,0,null,0,null,0,null,0,null,0,null,0,null,0,null,0,null,0,null,0,null,0,null,0,null,0,null,0,null,0,null,0,null,0,null,0]

{"sheet":"CSV_Template","index":9,"n_rows":1,"n_cols":9,"rows_kept":1,"cut":false,"hidden":true,"merged":[]}
["COUNTRY","QUEST","DATATYPE","PRODUCT","ITEM1","ITEM2","TIME","VALUE","FLAG"]

{"sheet":"CSV Dimensions","index":10,"n_rows":371,"n_cols":4,"rows_kept":371,"cut":false,"hidden":true,"merged":[]}
[]
["DATATYPE","CODE","NAME"]
[null,"ENTRY","Entry"]
[null,"EXIT","Exit"]
[null,"REMARKS","Remarks"]
[]
["PRODUCT","CODE","NAME"]
[null,"LNGCM","Liquefied Natural Gas (Million m3)"]
[null,"LNGTJ","Liquefied Natural Gas (Terajoules)"]
[null,"NATGASCM","Natural Gas (Million m3)"]
[null,"NATGASTJ","Natural Gas (Terajoules)"]
[]
["FLAG","CODE","NAME","Description"]
[null,"M","M","Data cannot exist. To be used only when no values are provided."]
[null,"O","O","Missing value (not available/omitted/not known/not surveyed). To be used only when no values are provided."]
[null,"N","N","Not significant/negligible. To be used only when a '0' value is provided."]
[null,"C","C","Confidential value. If the data collection is in the secure environment, the C flag is used when values are provided. If the data collection is in the normal environment, the C flag is used without values."]
[null,"D","D","Definition differs. To be used only when values are provided. An explanation should be given in the Remarks worksheet."]
[null,"B","B","Break in time series. To be used only when values are provided. An explanation should be given in the Remarks worksheet."]
[null,"P","P","Provisional value. To be used only when values are provided and only for the most recent time period."]
[null,"E","E","Estimated value. To be used only when values are provided."]
[null,"U","U","Low reliability/uncertain. To be used only when values are provided."]
[]
["QUEST","CODE","NAME"]
[null,"GTFM","GTFM"]
[]
["COUNTRY","CODE","NAME"]
[null,"AL","Albania"]
[null,"DZ","Algeria"]
[null,"AD","Andorra"]
[null,"AO","Angola"]
[null,"AR","Argentina"]
[null,"AM","Armenia"]
[null,"AW","Aruba"]
[null,"AU","Australia"]
[null,"AT","Austria"]
[null,"AZ","Azerbaijan"]
[null,"BS","Bahamas"]
[null,"BH","Bahrain"]
[null,"BD","Bangladesh"]
[null,"BB","Barbados"]
[null,"BY","Belarus"]
[null,"BE","Belgium"]
[null,"BZ","Belize"]
[null,"BJ","Benin"]
[null,"BO","Bolivia"]
[null,"BA","Bosnia and Herzegovina"]
[null,"BW","Botswana"]
[null,"BR","Brazil"]
[null,"VG","British Virgin Islands"]
[null,"BN","Brunei Darussalam"]
[null,"BG","Bulgaria"]
[null,"KH","Cambodia"]
[null,"CM","Cameroon"]
[null,"CA","Canada"]
[null,"CV","Cape Verde / Cabo Verde"]
[null,"CL","Chile"]
[null,"CN","China, People's Republic of"]
[null,"CO","Colombia"]
[null,"CG","Congo"]
[null,"CR","Costa Rica"]
[null,"CI","Côte d’Ivoire"]
[null,"HR","Croatia"]
[null,"CU","Cuba"]
[null,"CW","Curaçao"]
[null,"CY","Cyprus"]
[null,"CZ","Czech Republic"]
[null,"KP","Korea, Democratic People's Republic of"]
[null,"CD","Congo, Democratic Republic of the"]
[null,"DK","Denmark"]
[null,"DJ","Djibouti"]
[null,"DO","Dominican Republic"]
[null,"EC","Ecuador"]
[null,"EG","Egypt"]
[null,"GQ","Equatorial Guinea"]
[null,"ER","Eritrea"]
[null,"EE","Estonia"]
[null,"ET","Ethiopia"]
[null,"FI","Finland"]
[null,"FR","France"]
[null,"GA","Gabon"]
[null,"GE","Georgia"]
[null,"DE","Germany"]
[null,"GH","Ghana"]
[null,"GI","Gibraltar"]
[null,"GR","Greece"]
[null,"GT","Guatemala"]
[null,"GW","Guinea-Bissau"]
[null,"GY","Guyana"]
[null,"HN","Honduras"]
[null,"HK","Hong Kong, China"]
[null,"HU","Hungary"]
[null,"IS","Iceland"]
[null,"IN","India"]
[null,"ID","Indonesia"]
[null,"IR","Iran, Islamic Republic of"]
[null,"IQ","Iraq"]
[null,"IE","Ireland"]
[null,"IL","Israel"]
[null,"IT","Italy"]
[null,"JM","Jamaica"]
[null,"JP","Japan"]
[null,"JO","Jordan"]
[null,"KZ","Kazakhstan"]
[null,"KE","Kenya"]
[null,"KR","Korea"]
[null,"XK","Kosovo*"]
[null,"KW","Kuwait"]
[null,"KG","Kyrgyzstan"]
[null,"LA","Lao People's Democratic Republic"]
[null,"LV","Latvia"]
[null,"LB","Lebanon"]
[null,"LR","Liberia"]
[null,"LY","Libya"]
[null,"LI","Liechtenstein"]
[null,"LT","Lithuania"]
[null,"LU","Luxembourg"]
[null,"MG","Madagascar"]
[null,"MY","Malaysia"]
[null,"MT","Malta"]
[null,"MH","Marshall Islands"]
[null,"MR","Mauritania"]
[null,"MU","Mauritius"]
[null,"MX","Mexico"]
[null,"MD","Moldova, Republic of"]
[null,"MN","Mongolia"]
[null,"ME","Montenegro"]
[null,"MA","Morocco"]
[null,"MZ","Mozambique"]
[null,"MM","Myanmar"]
[null,"NA","Namibia"]
[null,"NP","Nepal"]
[null,"NL","Netherlands"]
[null,"NC","New Caledonia"]
[null,"NZ","New Zealand"]
[null,"NE","Niger"]
[null,"NG","Nigeria"]
[null,"MK","North Macedonia"]
[null,"NO","Norway"]
[null,"OM","Oman"]
[null,"O1","Other Africa"]
[null,"O4","Other Asia Oceania"]
[null,"O8","Other Europe"]
[null,"P8","Other Former Soviet Union"]
[null,"P4","Other Near and Middle East"]
[null,"P1","Other Non-OECD Americas"]
[null,"PK","Pakistan"]
[null,"PA","Panama"]
[null,"PG","Papua New Guinea"]
[null,"PE","Peru"]
[null,"PH","Philippines"]
[null,"PL","Poland"]
[null,"PT","Portugal"]
[null,"QA","Qatar"]
[null,"RO","Romania"]
[null,"RU","Russian Federation"]
[null,"ST","Sao Tome and Principe"]
[null,"SA","Saudi Arabia"]
[null,"SN","Senegal"]
[null,"RS","Serbia"]
[null,"SL","Sierra Leone"]
[null,"SG","Singapore"]
[null,"SK","Slovak Republic"]
[null,"SI","Slovenia"]
[null,"ZA","South Africa"]
[null,"SS","South Sudan"]
[null,"ES","Spain"]
[null,"LK","Sri Lanka"]
[null,"SD","Sudan"]
[null,"SE","Sweden"]
[null,"CH","Switzerland"]
[null,"SY","Syrian Arab Republic"]
[null,"TW","Taiwan / Chinese Taipei"]
[null,"TJ","Tajikistan"]
[null,"TZ","Tanzania, United Republic of"]
[null,"TH","Thailand"]
[null,"TL","Timor-Leste"]
[null,"TG","Togo"]
[null,"TT","Trinidad and Tobago"]
[null,"TN","Tunisia"]
[null,"TR","Turkey"]
[null,"TM","Turkmenistan"]
[null,"UG","Uganda"]
[null,"UA","Ukraine"]
[null,"AE","United Arab Emirates"]
[null,"GB","United Kingdom"]
[null,"US","United States"]
[null,"UY","Uruguay"]
[null,"UZ","Uzbekistan"]
[null,"VE","Venezuela, Bolivarian Republic"]
[null,"VN","Viet Nam"]
[null,"YE","Yemen"]
[null,"IM","Isle of Man"]
[null,"Y3","Not elsewhere specified"]
[null,"LNG","LNG"]
[]
["ITEM2","CODE","NAME"]
[null,"ADRIATIC","Cavarzere"]
[null,"ALEXANDROU","FSRU Alexandroupolis"]
[null,"ALMERIA","Almeria"]
[null,"ALVERINGEM","Alveringem"]
[null,"BADAJOZ","Badajoz / C. Maior"]
[null,"BALTICCONN","Baltic Connector Inkoo/Paldiski"]
[null,"BARCELONA","Barcelona"]
[null,"BASEL","Basel"]
[null,"BAUMGARTEN","Baumgarten"]
[null,"BAUSKA","Bauska"]
[null,"BBL","Balgzand Bacton Line (BBL)"]
[null,"BEREGDAROC","VIP Bereg"]
[null,"BILBAO","Bilbao"]
[null,"BIZZARONE","Bizzarone Como"]
[null,"BLAREGNIES","Taisnières (H)"]
[null,"BOCHOLTZ","Bocholtz"]
[null,"BOCHVETSCH","Bocholtz-Vetschau"]
[null,"BRANDOVEUG","Brandov EUGAL"]
[null,"BRANDOVOPA","Brandov OPAL"]
[null,"BRANDOVSTE","Brandov STEGAL"]
[null,"BRANICE","Branice"]
[null,"BRAS","Bras"]
[null,"BRASPETAN","Bras - Petange"]
[null,"BUDINCE","Budince"]
[null,"BUNDE","Bunde"]
[null,"CARTAGENA","Cartagena"]
[null,"CSANADPA","Csanadpalota"]
[null,"DOGUBAJAZI","Dogubajazit"]
[null,"DORNUM","Dornum"]
[null,"DORTYOL","Dörtyol FSRU / Hatay"]
[null,"DRAGON","Dragon"]
[null,"DRAGOR","Dragor"]
[null,"DRAVASZER","Dravaszerdahely"]
[null,"DROZDOWICZ","Drozdowicze"]
[null,"DUNKER_LNG","Dunkerque LNG"]
[null,"DUNKERQUE","Dunkerque"]
[null,"EASINGTON","Easington"]
[null,"EASINGTON","Langeled"]
[null,"EDIRNE","Edirne"]
[null,"ELLUND","Ellund"]
[null,"EMDEN_EPT1","Emden - EPT1 (DE) / Emden - EMS (NO)"]
[null,"ETKI","Etki FSRU"]
[null,"EYNATTEN_E","Eynatten / Lichtenbusch"]
[null,"FAXE","Faxe"]
[null,"FINKENHERD","Brieskow-Finkenheerd"]
[null,"FIVANAA","Exploitation field Ivana A"]
[null,"FMARICA","Exploitation field Marica"]
[null,"FOS","Fos-sur-Mer"]
[null,"GELA","Gela"]
[null,"GIURGIU","Ruse (BG)/Giurgiu (RO)"]
[null,"GORIZIA","Gorizia"]
[null,"GRIESPASS","Griespass"]
[null,"GUBIN","Gubin"]
[null,"HAANRADE","Haanrade"]
[null,"HERMANOWIC","Hermanowice"]
[null,"HILVARENBE","Hilvarenbeek (L)"]
[null,"HOCHST","Hochst, Feldkirch/Bangs (Distribution networks)"]
[null,"HORA_KATER","Deutschneudorf / Hora Svate Kateriny"]
[null,"HUELVA","Huelva"]
[null,"IMATRA","Imatra"]
[null,"INTERCONN","Interconnector (IZT)"]
[null,"INTERCONN","Interconnector UK (INT)"]
[null,"ISACCEA","Isaccea (RO) / Orlovka (UA)"]
[null,"ISACCEA","Isaccea (RO) / Orlovka (UA)"]
[null,"ISLE_GRAIN","Grain"]
[null,"IZMIR","Izmir"]
[null,"JIDILOVO","Kyustendil (BG)/Zidilovo (MK)"]
[null,"JURA","Jura"]
[null,"KALOTINA","Kalotina (BG)/ Dimitrovgrad (RS)"]
[null,"KAMMINKE","Kamminke"]
[null,"KARKSI","Karksi"]
[null,"KASTORIA","Kastoria-Ieropigi (TAP)"]
[null,"KIEFERSF","Kiefersfelden"]
[null,"KIEMENAI","Kiemenai"]
[null,"KIPI","Kipi"]
[null,"KIREEVO","Kireevo (BG)/Zaychar (RS) (Rasovo)"]
[null,"KISKUNDORO","Kiskundorozsma"]
[null,"KIYIKOY","Kıyıköy"]
[null,"KLAIPEDA","Klaipeda"]
[null,"KONDRATKI","Kondratki"]
[null,"KORNETI","Korneti"]
[null,"KOTLOVKA","Kotlovka"]
[null,"KRK","LNG TEMINAL - Krk"]
[null,"KULA","Kulata (BG)/Sidirokastro(GR)"]
[null,"LAA","Laa/Thaya (Distribution networks)"]
[null,"LANZHOT","Lanzhot"]
[null,"LASOW","Görlitz/ Lasów"]
[null,"LINDAU","Lindau"]
[null,"LIVORNO","Livorno"]
[null,"MALKOCLAR","Strandzha  (BG)/ Malkoclar (TR)"]
[null,"MALKOCLAR2","Strandzha 2 (BG)/ Malkoclar (TR)"]
[null,"MALLNOW","Mallnow"]
[null,"MARMARA","Marmara Ereglisi"]
[null,"MAZARA","Mazara del Vallo"]
[null,"MEDIESU","MEDIESU AURIT (RO) - TEKOVO (UA)"]
[null,"MELENDUGNO","Melendugno (TAP)"]
[null,"MOFFAT","Moffat"]
[null,"MOFFAT","Moffat - Ireland"]
[null,"MOFFATIS","Moffat - Isle of Man"]
[null,"MONTOIR","Montoir de Bretagne"]
[null,"MORAVIA","Cieszyn (PL) / Cesky Tesin (CZ)"]
[null,"MOSONMAGYA","Mosonmagyarovar"]
[null,"MUGARDOS","Mugardos"]
[null,"MURFELD","Murfeld"]
[null,"MUSEL","Musel"]
[null,"NARVA","Narva"]
[null,"NEGRU_VODA","Negru Voda 1 (RO)/Kardam (BG)"]
[null,"NOGAT","North Sea via NOGAT to Den Helder"]
[null,"NONSPEC","Not Elsewhere Specified"]
[null,"NONSPEC","Others"]
[null,"NONSPEC","Others (Falconara + Casalborsetti)"]
[null,"NORDSTREAM","Greifswals (NORDSTREAM-NEL+OPAL)"]
[null,"NYBRO","NYBRO"]
[null,"NYBRO","Nybro"]
[null,"OBERGAILBA","Medelsheim / Obergailbach"]
[null,"OBERKAPDST","Oberkappel, Überackern, Gas storage and distribution networks"]
[null,"OBERKAPPEL","Oberkappel"]
[null,"OLBERNHAU","Olbernhau"]
[null,"OLTINGUE","Oltingue"]
[null,"OUDE_H_GAS","Oude (H-Gas)"]
[null,"OUDE_L_GAS","Oude (L-Gas)"]
[null,"PANIGAGLIA","Panigaglia"]
[null,"PETANGE","Petange"]
[null,"PIOMBINO","Piombino"]
[null,"PRIVALKA","Privalka-Raigardas"]
[null,"REMICH","Remich"]
[null,"REVITHOUSS","Revithoussa (NNGTS)"]
[null,"ROGATEC","Rogatec"]
[null,"RUGGELL","Ruggell (Distribution networks)"]
[null,"SAGUNTO","Sagunto"]
[null,"SAKIAI","Sâkiai"]
[null,"SAMSUN","Samsun"]
[null,"SANTAKA","Santaka"]
[null,"SAROS","Saros FSRU / Çanakkale"]
[null,"SINES","Sines"]
[null,"SNOHVIT","Snohvit"]
[null,"SOUTHHOOK","South Hook"]
[null,"STARAZAGOR","IP Stara Zagora"]
[null,"STFERGUSA","via SAGE"]
[null,"STFERGUSGJ","St Fergus (GB) / Gjøa Gas Pipeline (NO)"]
[null,"STFERGUSS","Tampen Link"]
[null,"STFERGUSTL","St Fergus (GB) / Statfjord-Tampen Link (NO)"]
[null,"STFERGUSV","St Fergus (GB) / Vesterled (NO)"]
[null,"STFERGUSV","Vesterled"]
[null,"SWINOUJSCI","Świnoujście"]
[null,"TARIFA","Tarifa"]
[null,"TARVISIO","Arnoldstein / Tarvisio"]
[null,"TASNIERES","Blaregnies (L)"]
[null,"TASNIERES","Taisnières (L)\n"]
[null,"TEESSIDEPI","via CATS"]
[null,"TEGELEN","Tegelen"]
[null,"THAYNGEN","Thayngen"]
[null,"TURKGOZU","Türkgözü"]
[null,"TUY","Valença Minho / Tuy"]
[null,"UBERACK","Überackern I/II"]
[null,"UBERACK_1","Überackern I"]
[null,"UBERACK_2","Überackern 2"]
[null,"UNGHENI","Ungheni"]
[null,"VARSKA","Varska"]
[null,"VELKE","Velke Kapusany"]
[null,"VELKEZ","Balassagyarmat / Velke Zlievce"]
[null,"VIPBENE","VIP BENE"]
[null,"VIPIBERICO","VIP Iberico"]
[null,"VIPPIRINEO","VIP Pirineos"]
[null,"VIPTHEZTP","VIP-THE-ZTP"]
[null,"VIRTUALYS","Virtualys"]
[null,"VYRAVA","Výrava"]
[null,"WAIDHAUS","Waidhaus"]
[null,"WALLBACH","Wallbach"]
[null,"WGT","Greater Markham Area (GMA) to WestGasTransport (WGT)"]
[null,"WINTERSWIJ","Winterswijk/Vreden"]
[null,"ZEEBRU_LNG","Zeebrugge (LNG)"]
[null,"ZEEBRU_ZPT","Zeebrugge (ZPT)"]
[null,"ZEVENAAR","Zevenaar/Elten"]

{"sheet":"Aux","index":11,"n_rows":167,"n_cols":28,"rows_kept":167,"cut":false,"hidden":true,"merged":[[10,0,10,1]]}
["Name Entries/Exists","Name BaseData",null,"Month",null,"Countries LNG","Order LNG",null,"Long Name",null,"Condition",null,null,"Format",null,null,null,null,null,null,null,null,null,null,"TimeSeries "]
[{"$f":"+'Entries (Pipeline)'!B10","v":"Flow"},{"$f":"BaseData[[#Headers],[CODE_FLOW]]","v":"CODE_FLOW"},null,"January",null,"Albania",1,null,"Austria",null,"Standard Conditions (15°C, 760 mm Hg)","Million m3",null,"Flow","Partner","Location","Max flow\n(Mcm/h)","Natural gas \nMillion m3 (at\n15°C, 760 mm Hg)","FLAG","Natural gas \nTerajoules\n(Gross calor. value)","FLAG","Natural gas \nGross calorific value\n(Calculated)",null,null,"Entry/Exit","Flow","Partner","Location"]
[{"$f":"+'Entries (Pipeline)'!C10","v":"Partner"},{"$f":"BaseData[[#Headers],[Partner]]","v":"Partner"},null,"February",null,"Algeria",2,null,"Belgium",null,null,"Terajoules"]
[{"$f":"+'Entries (Pipeline)'!D10","v":"Location"},{"$f":"BaseData[[#Headers],[Location]]","v":"Location"},null,"March",null,"Andorra",3,null,"Bulgaria"]
[{"$f":"+'Exits (Pipeline)'!E10","v":"Max flow\n(Mcm/h)"},{"$f":"BaseData[[#Headers],[MAXFLOW]]","v":"MAXFLOW"},null,"April",null,"Angola",4,null,"Croatia"]
[null,null,null,"May",null,"Argentina",5,null,"Czech Republic"]
[null,null,null,"June",null,"Armenia",6,null,"Denmark"]
[null,null,null,"July",null,"Aruba",7,null,"Estonia"]
[null,null,null,"August",null,"Australia",8,null,"Finland"]
[null,null,null,"September",null,"Austria",9,null,"France"]
["Natural gas Gross calorific values (1000*TJ)/Mcm",null,null,"October",null,"Azerbaijan",10,null,"Germany"]
["Min Value",37000,null,"November",null,"Bahamas",11,null,"Greece"]
["Max Value",42000,null,"December",null,"Bahrain",12,null,"Hungary"]
[null,null,null,null,null,"Bangladesh",13,null,"Ireland"]
[null,null,null,null,null,"Barbados",14,null,"Italy"]
[null,null,null,null,null,"Belarus",15,null,"Latvia"]
[null,null,null,null,null,"Belgium",16,null,"Lithuania"]
[null,null,null,null,null,"Belize",17,null,"Luxembourg"]
[null,null,null,null,null,"Benin",18,null,"Netherlands"]
[null,null,null,null,null,"Bolivia",19,null,"Norway"]
[null,null,null,null,null,"Bosnia and Herzegovina",20,null,"Poland"]
[null,null,null,null,null,"Botswana",21,null,"Portugal"]
[null,null,null,null,null,"Brazil",22,null,"Romania"]
[null,null,null,null,null,"British Virgin Islands",23,null,"Slovak Republic"]
[null,null,null,null,null,"Brunei Darussalam",24,null,"Slovenia"]
[null,null,null,null,null,"Bulgaria",25,null,"Spain"]
[null,null,null,null,null,"Cambodia",26,null,"Sweden"]
[null,null,null,null,null,"Cameroon",27,null,"Switzerland"]
[null,null,null,null,null,"Canada",28,null,"Tunisia"]
[null,null,null,null,null,"Cape Verde / Cabo Verde",29,null,"Turkey"]
[null,null,null,null,null,"Chile",30,null,"United Kingdom"]
[null,null,null,null,null,"China, People's Republic of",31,null,"Ukraine"]
[null,null,null,null,null,"Colombia",32]
[null,null,null,null,null,"Congo",33]
[null,null,null,null,null,"Costa Rica",34]
[null,null,null,null,null,"Côte d’Ivoire",35]
[null,null,null,null,null,"Croatia",36]
[null,null,null,null,null,"Cuba",37]
[null,null,null,null,null,"Curaçao",38]
[null,null,null,null,null,"Cyprus",39]
[null,null,null,null,null,"Czech Republic",40]
[null,null,null,null,null,"Korea, Democratic People's Republic of",41]
[null,null,null,null,null,"Congo, Democratic Republic of the",42]
[null,null,null,null,null,"Denmark",43]
[null,null,null,null,null,"Djibouti",44]
[null,null,null,null,null,"Dominican Republic",45]
[null,null,null,null,null,"Ecuador",46]
[null,null,null,null,null,"Egypt",47]
[null,null,null,null,null,"Equatorial Guinea",48]
[null,null,null,null,null,"Eritrea",49]
[null,null,null,null,null,"Estonia",50]
[null,null,null,null,null,"Ethiopia",51]
[null,null,null,null,null,"Finland",52]
[null,null,null,null,null,"France",53]
[null,null,null,null,null,"Gabon",54]
[null,null,null,null,null,"Georgia",55]
[null,null,null,null,null,"Germany",56]
[null,null,null,null,null,"Ghana",57]
[null,null,null,null,null,"Gibraltar",58]
[null,null,null,null,null,"Greece",59]
[null,null,null,null,null,"Guatemala",60]
[null,null,null,null,null,"Guinea-Bissau",61]
[null,null,null,null,null,"Guyana",62]
[null,null,null,null,null,"Honduras",63]
[null,null,null,null,null,"Hong Kong, China",64]
[null,null,null,null,null,"Hungary",65]
[null,null,null,null,null,"Iceland",66]
[null,null,null,null,null,"India",67]
[null,null,null,null,null,"Indonesia",68]
[null,null,null,null,null,"Iran, Islamic Republic of",69]
[null,null,null,null,null,"Iraq",70]
[null,null,null,null,null,"Ireland",71]
[null,null,null,null,null,"Israel",72]
[null,null,null,null,null,"Italy",73]
[null,null,null,null,null,"Jamaica",74]
[null,null,null,null,null,"Japan",75]
[null,null,null,null,null,"Jordan",76]
[null,null,null,null,null,"Kazakhstan",77]
[null,null,null,null,null,"Kenya",78]
[null,null,null,null,null,"Korea",79]
[null,null,null,null,null,"Kosovo*",80]
[null,null,null,null,null,"Kuwait",81]
[null,null,null,null,null,"Kyrgyzstan",82]
[null,null,null,null,null,"Lao People's Democratic Republic",83]
[null,null,null,null,null,"Latvia",84]
[null,null,null,null,null,"Lebanon",85]
[null,null,null,null,null,"Liberia",86]
[null,null,null,null,null,"Libya",87]
[null,null,null,null,null,"Liechtenstein",88]
[null,null,null,null,null,"Lithuania",89]
[null,null,null,null,null,"Luxembourg",90]
[null,null,null,null,null,"Madagascar",91]
[null,null,null,null,null,"Malaysia",92]
[null,null,null,null,null,"Malta",93]
[null,null,null,null,null,"Marshall Islands",94]
[null,null,null,null,null,"Mauritania",95]
[null,null,null,null,null,"Mauritius",96]
[null,null,null,null,null,"Mexico",97]
[null,null,null,null,null,"Moldova, Republic of",98]
[null,null,null,null,null,"Mongolia",99]
[null,null,null,null,null,"Montenegro",100]
[null,null,null,null,null,"Morocco",101]
[null,null,null,null,null,"Mozambique",102]
[null,null,null,null,null,"Myanmar",103]
[null,null,null,null,null,"Namibia",104]
[null,null,null,null,null,"Nepal",105]
[null,null,null,null,null,"Netherlands",106]
[null,null,null,null,null,"New Caledonia",107]
[null,null,null,null,null,"New Zealand",108]
[null,null,null,null,null,"Niger",109]
[null,null,null,null,null,"Nigeria",110]
[null,null,null,null,null,"North Macedonia",111]
[null,null,null,null,null,"Norway",112]
[null,null,null,null,null,"Oman",113]
[null,null,null,null,null,"Other Africa",114]
[null,null,null,null,null,"Other Asia Oceania",115]
[null,null,null,null,null,"Other Europe",116]
[null,null,null,null,null,"Other Former Soviet Union",117]
[null,null,null,null,null,"Other Near and Middle East",118]
[null,null,null,null,null,"Other Non-OECD Americas",119]
[null,null,null,null,null,"Pakistan",120]
[null,null,null,null,null,"Panama",121]
[null,null,null,null,null,"Papua New Guinea",122]
[null,null,null,null,null,"Peru",123]
[null,null,null,null,null,"Philippines",124]
[null,null,null,null,null,"Poland",125]
[null,null,null,null,null,"Portugal",126]
[null,null,null,null,null,"Qatar",127]
[null,null,null,null,null,"Romania",128]
[null,null,null,null,null,"Russian Federation",129]
[null,null,null,null,null,"Sao Tome and Principe",130]
[null,null,null,null,null,"Saudi Arabia",131]
[null,null,null,null,null,"Senegal",132]
[null,null,null,null,null,"Serbia",133]
[null,null,null,null,null,"Sierra Leone",134]
[null,null,null,null,null,"Singapore",135]
[null,null,null,null,null,"Slovak Republic",136]
[null,null,null,null,null,"Slovenia",137]
[null,null,null,null,null,"South Africa",138]
[null,null,null,null,null,"South Sudan",139]
[null,null,null,null,null,"Spain",140]
[null,null,null,null,null,"Sri Lanka",141]
[null,null,null,null,null,"Sudan",142]
[null,null,null,null,null,"Sweden",143]
[null,null,null,null,null,"Switzerland",144]
[null,null,null,null,null,"Syrian Arab Republic",145]
[null,null,null,null,null,"Taiwan / Chinese Taipei",146]
[null,null,null,null,null,"Tajikistan",147]
[null,null,null,null,null,"Tanzania, United Republic of",148]
[null,null,null,null,null,"Thailand",149]
[null,null,null,null,null,"Timor-Leste",150]
[null,null,null,null,null,"Togo",151]
[null,null,null,null,null,"Trinidad and Tobago",152]
[null,null,null,null,null,"Tunisia",153]
[null,null,null,null,null,"Turkey",154]
[null,null,null,null,null,"Turkmenistan",155]
[null,null,null,null,null,"Uganda",156]
[null,null,null,null,null,"Ukraine",157]
[null,null,null,null,null,"United Arab Emirates",158]
[null,null,null,null,null,"United Kingdom",159]
[null,null,null,null,null,"United States",160]
[null,null,null,null,null,"Uruguay",161]
[null,null,null,null,null,"Uzbekistan",162]
[null,null,null,null,null,"Venezuela, Bolivarian Republic",163]
[null,null,null,null,null,"Viet Nam",164]
[null,null,null,null,null,"Yemen",165]
[null,null,null,null,null,"Not elsewhere specified",166]

{"sheet":"LogImportData","index":12,"n_rows":1,"n_cols":3,"rows_kept":1,"cut":false,"hidden":false,"merged":[]}
["Record","Error description","File"]

{"sheet":"AuxLNG","index":13,"n_rows":45,"n_cols":45,"rows_kept":45,"cut":false,"hidden":true,"merged":[]}
["LNG Entries"]
["Reported Countries","Partner Countries"]
["Belgium","Qatar","Russian Federation","United States","Not elsewhere specified","Egypt","Angola","Algeria","Norway","Equatorial Guinea","Spain","Netherlands"]
["Canada","Trinidad and Tobago","Norway","Peru","Netherlands","Spain","Angola","United States"]
["Finland","United States","Russian Federation","Norway","Lithuania","Algeria","Netherlands","Spain","Sweden","Latvia","France","Belgium"]
["Greece","United States","Algeria","Qatar","Norway","Egypt","Nigeria","Russian Federation","France","Angola","Netherlands","Spain","Oman","Trinidad and Tobago","Indonesia","Cameroon"]
["Israel","Not elsewhere specified"]
["Lithuania","Norway","United States","Egypt","Nigeria"]
["Mexico","Peru","Nigeria","Qatar","Trinidad and Tobago","Indonesia","Australia","Spain","France","Norway","Equatorial Guinea","Algeria","Yemen"]
["Netherlands","United States","Russian Federation","Not elsewhere specified","Norway","Angola","Qatar","Trinidad and Tobago","Nigeria","United Kingdom","Equatorial Guinea","Peru","Algeria","Egypt","Cameroon","Australia","Gibraltar","Other Africa","United Arab Emirates","Jamaica","Singapore","Oman","Ghana","Côte d’Ivoire","Albania","India"]
["Norway","Russian Federation","Netherlands","Sweden","Spain","Belgium","United Kingdom","Lithuania","Finland","Turkey","Denmark"]
["Poland","Qatar","United States","Norway","Russian Federation","Trinidad and Tobago","Nigeria","Egypt","Lithuania","Germany","Netherlands","Belgium","Estonia","Hungary","Italy","France"]
["Portugal","Nigeria","United States","Qatar","Russian Federation","Trinidad and Tobago","Algeria","Norway","Angola","Equatorial Guinea","Netherlands","Spain","Not elsewhere specified"]
["Spain","Nigeria","United States","Qatar","Algeria","Russian Federation","Trinidad and Tobago","Peru","Norway","Equatorial Guinea","Egypt","Angola","Oman","Cameroon","France","Belgium","Netherlands","Not elsewhere specified","Argentina","Australia","Gibraltar","Mozambique","Papua New Guinea","Korea","Indonesia","Malaysia","United Kingdom","Portugal"]
["Sweden","Finland","Norway","Netherlands","Russian Federation","Belgium","Not elsewhere specified","Denmark","Germany","Lithuania","Spain","United States","Austria","Australia"]
["Turkey","Algeria","United States","Nigeria","Qatar","Egypt","Trinidad and Tobago","Norway","France","Russian Federation","Equatorial Guinea","Spain","Angola","Belgium","Oman","Netherlands","Mozambique","Cameroon","United Kingdom","Indonesia","Not elsewhere specified","Bulgaria","Azerbaijan"]
["United Kingdom","Qatar","United States","Russian Federation","Algeria","Trinidad and Tobago","Peru","Norway","Nigeria","Angola","Egypt","Belgium","Equatorial Guinea","France","Not elsewhere specified","Spain","Netherlands","Chile","Oman"]
["United States","Trinidad and Tobago","Norway","Nigeria","Yemen","Canada","France","United Kingdom","Not elsewhere specified","Jamaica","Slovenia"]
["France","Algeria","Nigeria","Qatar"]
["Italy","Qatar","Algeria","United States","Egypt","Trinidad and Tobago","Spain","Nigeria","Not elsewhere specified","Equatorial Guinea","Norway","Russian Federation","Peru","Mozambique","Papua New Guinea","Belgium","Angola","Oman","France"]
["Korea","Qatar","Australia","Malaysia","Oman","United States","Indonesia","Russian Federation","Nigeria","Brunei Darussalam","Peru","Yemen","Papua New Guinea","Equatorial Guinea","Egypt","United Arab Emirates","Belgium","Angola","Algeria","Trinidad and Tobago","Spain","China, People's Republic of","France","Other Asia Oceania","Cameroon","Netherlands","Norway","Singapore","United Kingdom","Not elsewhere specified","Japan","Morocco"]
["Japan","Australia","Malaysia","Qatar","Russian Federation","Indonesia","Brunei Darussalam","Papua New Guinea","United Arab Emirates","United States","Oman","Nigeria","Peru","Equatorial Guinea","Algeria","Yemen","Egypt","France","Spain","Trinidad and Tobago","Angola","Not elsewhere specified","Norway","Other Asia Oceania","Korea","Netherlands","Belgium"]
["Chile","Trinidad and Tobago","United States","Equatorial Guinea","Australia","Norway","Qatar","France","Egypt","Nigeria"]
["Germany","Not elsewhere specified"]
[]
["LNG Exits"]
["Reported Countries","Partner Countries"]
["Australia","Japan","Not elsewhere specified","Korea"]
["Belgium","Other Asia Oceania","China, People's Republic of","Not elsewhere specified","Singapore","India","Korea","Netherlands","Taiwan / Chinese Taipei","Japan","Spain","Brazil","Indonesia","Argentina","Turkey","France","United Kingdom","Portugal","Italy","Sweden","Greece","Kuwait","United States","Croatia","Trinidad and Tobago","Jordan","Norway","Germany","Finland","Lithuania","Gibraltar","Denmark"]
["Canada","United States","China, People's Republic of","United Arab Emirates","Myanmar","Taiwan / Chinese Taipei"]
["Finland","Sweden","Norway","Estonia","France"]
["Greece","Slovak Republic","North Macedonia"]
["Israel","TOTEXTST"]
["Lithuania","Russian Federation","Sweden","Norway"]
["Mexico"]
["Netherlands","China, People's Republic of","Not elsewhere specified","Gibraltar","Jordan","India","United Kingdom","Sweden","Japan","Germany","United Arab Emirates","Belgium","Pakistan","Singapore","Kuwait","Norway","Italy","Canada","Brazil","Indonesia","Turkey","Poland","Finland","Switzerland","Spain","Korea","Denmark","Czech Republic","France","Slovak Republic","Austria","North Macedonia","Luxembourg","South Africa","New Zealand","Greece","Nigeria","Saudi Arabia","Brunei Darussalam","Malaysia","Ecuador","Iran, Islamic Republic of","Viet Nam","Serbia","Côte d’Ivoire"]
["Norway","Lithuania","France","Netherlands","Spain","Not elsewhere specified","United Kingdom","Turkey","Brazil","Sweden","Poland","Argentina","Greece","United States","Germany","Italy","China, People's Republic of","Chile","Korea","India","Jordan","Finland","Portugal","Canada","Belgium","Other Non-OECD Americas","Denmark","Mexico","Japan","Korea, Democratic People's Republic of","Gibraltar","Kuwait","Dominican Republic","Malta","Iceland"]
["Poland","Germany","Czech Republic","Lithuania","Belgium","Slovak Republic","Sweden","Latvia","Italy"]
["Portugal","Brazil","Not elsewhere specified","Italy","India","Argentina","France","Spain"]
["Russian Federation","Japan","France","China, People's Republic of","Belgium","United Kingdom","Korea","Spain","Taiwan / Chinese Taipei","Morocco","Netherlands","Norway","Korea, Democratic People's Republic of"]
["Spain","Italy","Japan","Not elsewhere specified","Korea","Brazil","Argentina","Other Non-OECD Americas","Netherlands","India","China, People's Republic of","France","Turkey","Gibraltar","United States","Germany","Kuwait","Taiwan / Chinese Taipei","Greece","Belgium","United Kingdom","Mexico","Pakistan","Canada","Portugal","Finland","Sweden","Croatia","Cyprus","Norway","Singapore","Andorra","Chile","Switzerland","Hungary"]
["Sweden","Finland","Not elsewhere specified","Norway","France","Germany","Denmark","Netherlands"]
["Turkey","Not elsewhere specified","North Macedonia","Bulgaria","Romania","Serbia"]
["United Kingdom","Not elsewhere specified","Korea","Turkey","India","Argentina","Belgium","Other Non-OECD Americas"]
["United States","Korea","Japan","United Kingdom","France","Spain","Netherlands","China, People's Republic of","India","Turkey","Brazil","Mexico","Italy","Chile","Taiwan / Chinese Taipei","Poland","Argentina","Portugal","Dominican Republic","Greece","Belgium","Kuwait","Lithuania","Croatia","Germany","Pakistan","Jordan","Singapore","Thailand","Bangladesh","Panama","Jamaica","United Arab Emirates","Colombia","Finland","Israel","Malta","Egypt","Indonesia","Malaysia","Not elsewhere specified","Bahamas","Barbados","Canada","Other Non-OECD Americas"]